Workbook

Sheet Contents
B1: REGULATORY REPORTING STATEMENT
B2: =TradingName -> Ergon Energy
B3: =CONCATENATE("Benchmarking RIN response ",CRY) -> Benchmarking RIN response 2013-14
B5: CONTENTS
B12: 3. ECONOMIC BENCHMARKING

Sheet 1.0 Business & other details
B1: REGULATORY REPORTING STATEMENT
B2: =TradingName -> Ergon Energy
B3: =CONCATENATE("Benchmarking RIN response ",CRY) -> Benchmarking RIN response 2013-14
B4: 1.2 BUSINESS & OTHER DETAILS
B7: Instructions
B8: Complete the following business details regulatory template before entering data or values in any other regulatory template. This regulatory template is linked to other cells within the spreadsheet and automatically generates column headings.
B10: TABLE 1.2.1 - SUBMISSION PARTICULARS INPUT SHEET
B12: Entity details
B14: Trading name | C14: Ergon Energy
B15: ACN / ABN | C15: 50087646062
B18: Business address | C18: Address 1 | E18: 420 Flinders Street
D19: Address 2
C20: Suburb | E20: Townsville
D21: State | E21: Qld | F21: p/code | G21: 4810
B23: Postal address | C23: Address 1 | E23: PO Box 264
D24: Address 2
C25: Suburb | E25: Fortitude Valley
D26: State | E26: Qld | F26: p/code | G26: 4006
B29: Contact name/s | C29: Jenny Doyle | F29: Group Manager Regulatory Affairs
B30: Contact phone/s | C30: (07) 3851 6416
B31: Contact email address/s | C31: jenny.doyle@ergon.com.au
B34: Regulatory year | C34: Financial / Other
C35: 2013-14
B40: Sector | C40: Electricity
B41: Segment | C41: Distribution
B42: Source | C42: Regulatory proposal
B43: Regulatory Year | C43: 2013-14
B44: Reporting Period Type | C44: Financial Year
B45: RIN Type | C45: EB
B46: Security Classification | C46: Public
B47: Estimated or actual | C47: Consolidated Public
B48: RIN response - version no. | C48: 1
B49: RIN response - amendment reason | C49: Resubmission because data has been amended (1 Aug 2016) Updated Tables 3.5.1.1, 3.5.1.3, 3.5.2.2 (Physical Assets). Ergon Energy's restatement of physical asset values (circuit length, capacity) was requested by the AER in their review of data for the 2016 Benchmarking Report. As it is desirable for data to be consistent over time, where continual improvements were made in reporting techniques used in 2014/15, historical data for line lengths and capacities have been restated on the same basis for more accurate reporting. Transformer capacities have also been amended where transformers were taken out of serivce, reclassified as Powerlink owned or exit feeder limitations have now been considered.
B50: RIN template - version no. | C50: 2

Sheet 3.1 Revenue
C1: REGULATORY REPORTING STATEMENT
C2: =TradingName -> Ergon Energy
C3: =CONCATENATE("Benchmarking RIN response ",CRY) -> Benchmarking RIN response 2013-14
C4: 3.1 REVENUE
E8: Standard control services | F8: Alternative control services
E9: Actual ($000s)
E10: =CRY -> 2013-14 | F10: =CRY -> 2013-14
C12: TABLE 3.1.1 - REVENUE GROUPING BY CHARGEABLE QUANTITY
A13: ED_REV311_00001 | B13: DREV0101 | C13: Revenue from Fixed Customer Charges | E13: 310756.7128 | F13: 0
A14: ED_REV311_00002 | B14: DREV0102 | C14: Revenue from Energy Delivery charges where time of use is not a determinant | E14: 748825.1277 | F14: 0
A15: ED_REV311_00003 | B15: DREV0103 | C15: Revenue from On–Peak Energy Delivery charges | E15: 0 | F15: 0
A16: ED_REV311_00004 | B16: DREV0104 | C16: Revenue from Shoulder period Energy Delivery Charges | E16: 0 | F16: 0
A17: ED_REV311_00005 | B17: DREV0105 | C17: Revenue from Off–Peak Energy Delivery charges | E17: 0 | F17: 0
A18: ED_REV311_00006 | B18: DREV0106 | C18: Revenue from controlled load customer charges | E18: 36430.22216 | F18: 0
A19: ED_REV311_00007 | B19: DREV0107 | C19: Revenue from unmetered supplies | E19: 1280.763854 | F19: 0
A20: ED_REV311_00008 | B20: DREV0108 | C20: Revenue from Contracted Maximum Demand charges | E20: 393858.0409 | F20: 0
A21: ED_REV311_00009 | B21: DREV0109 | C21: Revenue from Measured Maximum Demand charges | E21: 28973.28439 | F21: 0
A22: ED_REV311_00010 | B22: DREV0110 | C22: Revenue from metering charges | E22: 0 | F22: 425
A23: ED_REV311_00011 | B23: DREV0111 | C23: Revenue from connection charges | E23: 59990.5991 | F23: 29227.77947
A24: ED_REV311_00012 | B24: DREV0112 | C24: Revenue from public lighting charges | E24: 18783.49964 | F24: 35840.932
A25: ED_REV311_00013 | B25: DREV0113 | C25: Revenue from other Sources | E25: 0 | F25: 21343
B26: DREV01 | C26: Total revenue by chargeable quantity | D26: $'000 | E26: =SUM(E13:E25) -> 1598898.251 | F26: =SUM(F13:F25) -> 86836.71147
C28: TABLE 3.1.2 REVENUE GROUPING BY CUSTOMER TYPE OR CLASS
A29: ED_REV312_00001 | B29: DREV0201 | C29: Revenue from residential Customers | E29: 822612.4886 | F29: 0
A30: ED_REV312_00002 | B30: DREV0202 | C30: Revenue from Non residential customers not on demand tariffs | E30: 175601.1301 | F30: 0
A31: ED_REV312_00003 | B31: DREV0203 | C31: Revenue from Non-residential low voltage demand tariff customers | E31: 359738.2419 | F31: 0
A32: ED_REV312_00004 | B32: DREV0204 | C32: Revenue from Non-residential high voltage demand tariff customers | E32: 160891.5274 | F32: 0
A33: ED_REV312_00005 | B33: DREV0205 | C33: Revenue from unmetered supplies | E33: 1280.763854 | F33: 0
A34: ED_REV312_00006 | B34: DREV0206 | C34: Revenue from Other Customers | E34: 78774.09874 | F34: 86836.71171
B35: DREV02 | C35: Total revenue by customer class | D35: $'000 | E35: =SUM(E29:E34) -> 1598898.251 | F35: =SUM(F29:F34) -> 86836.71171
C37: TABLE 3.1.3 REVENUE (penalties) ALLOWED (deducted) THROUGH INCENTIVE SCHEMES
A38: ED_REV313_00001 | B38: DREV0301 | C38: EBSS | E38: 0 | F38: 0
A39: ED_REV313_00002 | B39: DREV0302 | C39: STPIS | E39: 1846 | F39: 0
A40: ED_REV313_00003 | B40: DREV0303 | C40: F-Factor
A41: ED_REV313_00004 | B41: DREV0304 | C41: S-Factor True up
A42: ED_REV313_00005 | B42: DREV0305 | C42: Other | E42: 0 | F42: 0
B43: DREV03 | C43: Total revenue of incentive schemes | D43: $'000 | E43: =SUM(E38:E42) -> 1846 | F43: =SUM(F38:F42) -> 0

Sheet 3.2 Opex
C1: REGULATORY REPORTING STATEMENT | F1: Worksheet navigation
C2: =TradingName -> Ergon Energy
C3: =CONCATENATE("Benchmarking RIN response ",CRY) -> Benchmarking RIN response 2013-14
C4: 3.2 OPERATING EXPENDITURE
C7: Instructions
C8: =CONCATENATE(TradingName, " must fill in opex in table 3.2.1 for opex categories reported in response to its annual reporting RIN.") -> Ergon Energy must fill in opex in table 3.2.1 for opex categories reported in response to its annual reporting RIN.
E11: Standard control services | F11: Alternative control services
E12: Actual ($000s)
E13: =CRY -> 2013-14 | F13: =CRY -> 2013-14
C15: TABLE 3.2.1 - OPEX CATEGORIES
C17: Table 3.2.1.1 Current opex categories and cost allocations
B18: DOPEX0101 | C18: Preventative maintenance | E18: 71824 | F18: 6555
B19: DOPEX0102 | C19: Corrective maintenance | E19: 105324 | F19: 5307
B20: DOPEX0103 | C20: Forced maintenance | E20: 67886 | F20: 503
B21: DOPEX0104 | C21: Other network maintenance | E21: 0 | F21: 0
B22: DOPEX0105 | C22: Network operating costs | E22: 34466 | F22: 0
B23: DOPEX0106 | C23: Meter reading | E23: 12905 | F23: 0
B24: DOPEX0107 | C24: Customer service (incl Call Centre) | E24: 28766.11074 | F24: 30326.94463
B25: DOPEX0108 | C25: Other operating costs | E25: 6577 | F25: 0
B26: DOPEX0109 | C26: Training | E26: 18606 | F26: 0
B27: DOPEX0110 | C27: Feed-in tariff | E27: 120083 | F27: 0
B28: DOPEX0111 | C28: Debt raising costs | E28: 0 | F28: 0
B29: DOPEX0112 | C29: Over absorbed overheads | E29: 9102 | F29: 0
B30: DOPEX0113 | C30: Non network alternatives | E30: 0 | F30: 0
B31: DOPEX0114
B32: DOPEX0115
B33: DOPEX0116
B34: DOPEX0117
B35: DOPEX0118
B36: DOPEX0119
B37: DOPEX0120
B38: DOPEX0121
B39: DOPEX0122
B40: DOPEX0123
B41: DOPEX0124
B42: DOPEX0125
B43: DOPEX0126
B44: DOPEX0127
B45: DOPEX0128
B46: DOPEX0129
B47: DOPEX0130
B48: DOPEX0131
B49: DOPEX0132
B50: DOPEX0133
B51: DOPEX0134
B52: DOPEX0135
B53: DOPEX0136
B54: DOPEX0137
B55: DOPEX0138
B56: DOPEX0139
B57: DOPEX0140
B58: DOPEX0141
B59: DOPEX0142
A60: ED_OPX3211_99999 | B60: DOPEX01 | C60: Total opex | D60: ($'000) | E60: =SUM(E18:E59) -> 475539.1107 | F60: =SUM(F18:F59) -> 42691.94463
C63: Table 3.2.1.2A - Historical opex categories and cost allocations | E63: =CRY -> 2013-14 | F63: =CRY -> 2013-14
B64: DOPEX0101A | C64: Other network maintenance costs | E64: 0 | F64: 0
B65: DOPEX0102A | C65: Network operating costs | E65: 0 | F65: 0
B66: DOPEX0103A | C66: Meter reading | E66: 0 | F66: 0
B67: DOPEX0104A | C67: Customer service | E67: 0 | F67: 0
B68: DOPEX0105A | C68: Other operating costs | E68: 0 | F68: 0
B69: DOPEX0106A | C69: Training | E69: 0 | F69: 0
B70: DOPEX0107A | C70: Feed-in tariff | E70: 0 | F70: 0
B71: DOPEX0108A | C71: Debt raising costs | E71: 0 | F71: 0
B72: DOPEX0109A | C72: Non network alternatives | E72: 0 | F72: 0
B73: DOPEX0110A | C73: Inspection | E73: 0 | F73: 0
B74: DOPEX0111A | C74: Maintenance & repair | E74: 0 | F74: 0
B75: DOPEX0112A | C75: Vegetation management | E75: 0 | F75: 0
B76: DOPEX0113A | C76: Emergence response | E76: 0 | F76: 0
B77: DOPEX0114A | C77: Public street lighting | E77: 0 | F77: 0
B78: DOPEX0115A | C78: Full Retail Contestability | E78: 0 | F78: 0
B79: DOPEX0116A | C79: Pole replacement | E79: 0 | F79: 0
B80: DOPEX0117A
B81: DOPEX0118A
B82: DOPEX0119A
B83: DOPEX0120A
B84: DOPEX0121A
B85: DOPEX0122A
B86: DOPEX0123A
B87: DOPEX0124A
B88: DOPEX0125A
B89: DOPEX0126A
B90: DOPEX0127A
B91: DOPEX0128A
B92: DOPEX0129A
B93: DOPEX0130A
B94: DOPEX0131A
B95: DOPEX0132A
B96: DOPEX0133A
B97: DOPEX0134A
B98: DOPEX0135A
B99: DOPEX0136A
B100: DOPEX0137A
B101: DOPEX0138A
B102: DOPEX0139A
B103: DOPEX0140A
B104: DOPEX0141A
B105: DOPEX0142A
A106: ED_OPX3212A_99999 | B106: DOPEX01A | C106: Total opex | D106: ($'000) | E106: =SUM(E64:E105) -> 0 | F106: =SUM(F64:F105) -> 0
C108: Table 3.2.1.2B - Historical opex categories and cost allocations | E108: =CRY -> 2013-14 | F108: =CRY -> 2013-14
B109: DOPEX0101B | C109: Preventative maintenance | E109: 0 | F109: 0
B110: DOPEX0102B | C110: Corrective maintenance | E110: 0 | F110: 0
B111: DOPEX0103B | C111: Forced maintenance | E111: 0 | F111: 0
B112: DOPEX0104B | C112: Other network maintenance costs | E112: 0 | F112: 0
B113: DOPEX0105B | C113: Network operating costs | E113: 0 | F113: 0
B114: DOPEX0106B | C114: Meter reading | E114: 0 | F114: 0
B115: DOPEX0107B | C115: Customer service | E115: 0 | F115: 0
B116: DOPEX0108B | C116: Other operating costs | E116: 0 | F116: 0
B117: DOPEX0109B | C117: Training | E117: 0 | F117: 0
B118: DOPEX0110B | C118: Feed-in tariff | E118: 0 | F118: 0
B119: DOPEX0111B | C119: Debt raising costs | E119: 0 | F119: 0
B120: DOPEX0112B | C120: Public Street Lighting | E120: 0 | F120: 0
B121: DOPEX0113B | C121: Over Absorbed Overheads | E121: 0 | F121: 0
B122: DOPEX0114B | C122: Non network alternatives | E122: 0 | F122: 0
B123: DOPEX0115B
B124: DOPEX0116B
B125: DOPEX0117B
B126: DOPEX0118B
B127: DOPEX0119B
B128: DOPEX0120B
B129: DOPEX0121B
B130: DOPEX0122B
B131: DOPEX0123B
B132: DOPEX0124B
B133: DOPEX0125B
B134: DOPEX0126B
B135: DOPEX0127B
B136: DOPEX0128B
B137: DOPEX0129B
B138: DOPEX0130B
B139: DOPEX0131B
B140: DOPEX0132B
B141: DOPEX0133B
B142: DOPEX0134B
B143: DOPEX0135B
B144: DOPEX0136B
B145: DOPEX0137B
B146: DOPEX0138B
B147: DOPEX0139B
B148: DOPEX0140B
B149: DOPEX0141B
B150: DOPEX0142B
A151: ED_OPX3212B_99999 | B151: DOPEX01B | C151: Total opex | D151: ($'000) | E151: =SUM(E109:E150) -> 0 | F151: =SUM(F109:F150) -> 0
C153: Table 3.2.1.2C - Historical opex categories and cost allocations | E153: =CRY -> 2013-14 | F153: =CRY -> 2013-14
B154: DOPEX0101C | C154: Preventative maintenance | E154: 71824 | F154: 6555
B155: DOPEX0102C | C155: Corrective maintenance | E155: 105324 | F155: 5307
B156: DOPEX0103C | C156: Forced maintenance | E156: 67886 | F156: 503
B157: DOPEX0104C | C157: Other network maintenance costs | E157: 0 | F157: 0
B158: DOPEX0105C | C158: Network operating costs | E158: 34466 | F158: 0
B159: DOPEX0106C | C159: Meter reading | E159: 12905 | F159: 0
B160: DOPEX0107C | C160: Customer service | E160: 28766.11074 | F160: 30326.94463
B161: DOPEX0108C | C161: Other operating costs | E161: 6577 | F161: 0
B162: DOPEX0109C | C162: Training | E162: 18606 | F162: 0
B163: DOPEX0110C | C163: Feed-in tariff | E163: 120083 | F163: 0
B164: DOPEX0111C | C164: Debt raising costs | E164: 0 | F164: 0
B165: DOPEX0112C | C165: Over Absorbed Overheads | E165: 9102 | F165: 0
B166: DOPEX0113C | C166: Non network alternatives | E166: 0 | F166: 0
B167: DOPEX0114C
B168: DOPEX0115C
B169: DOPEX0116C
B170: DOPEX0117C
B171: DOPEX0118C
B172: DOPEX0119C
B173: DOPEX0120C
B174: DOPEX0121C
B175: DOPEX0122C
B176: DOPEX0123C
B177: DOPEX0124C
B178: DOPEX0125C
B179: DOPEX0126C
B180: DOPEX0127C
B181: DOPEX0128C
B182: DOPEX0129C
B183: DOPEX0130C
B184: DOPEX0131C
B185: DOPEX0132C
B186: DOPEX0133C
B187: DOPEX0134C
B188: DOPEX0135C
B189: DOPEX0136C
B190: DOPEX0137C
B191: DOPEX0138C
B192: DOPEX0139C
B193: DOPEX0140C
B194: DOPEX0141C
B195: DOPEX0142C
A196: ED_OPX3212C_99999 | B196: DOPEX01C | C196: Total opex | D196: ($'000) | E196: =SUM(E154:E195) -> 475539.1107 | F196: =SUM(F154:F195) -> 42691.94463
C198: TABLE 3.2.2 - OPEX CONSISTENCY
C200: Table 3.2.2.1 Opex consistency - current cost allocation approach | E200: =CRY -> 2013-14 | F200: =CRY -> 2013-14
A201: ED_OPX3221_00001 | B201: DOPEX0201 | C201: Opex for network services | E201: 428129.3604 | F201: 0
A202: ED_OPX3221_00002 | B202: DOPEX0202 | C202: Opex for metering | E202: 45801.695 | F202: 6110.94864
A203: ED_OPX3221_00003 | B203: DOPEX0203 | C203: Opex for connection services | E203: 0 | F203: 0
A204: ED_OPX3221_00004 | B204: DOPEX0204 | C204: Opex for public lighting | E204: 0 | F204: 12365
A205: ED_OPX3221_00005 | B205: DOPEX0205 | C205: Opex for amounts payable for easement levy or similar direct charges on DNSP | E205: 0 | F205: 0
A206: ED_OPX3221_00006 | B206: DOPEX0206 | C206: Opex for transmission connection point planning | E206: 43.166 | F206: 0
C207: Total opex | D207: ($'000) | E207: =SUM(E201:E206) -> 473974.2214 | F207: =SUM(F201:F206) -> 18475.94864
C209: Table 3.2.2.2 Opex consistency - historical cost allocation approaches | E209: =CRY -> 2013-14 | F209: =CRY -> 2013-14
A210: ED_OPX3222_00001 | B210: DOPEX0201A | C210: Opex for network services | E210: 428129.3604 | F210: 0
A211: ED_OPX3222_00002 | B211: DOPEX0202A | C211: Opex for metering | E211: 45801.695 | F211: 6110.94864
A212: ED_OPX3222_00003 | B212: DOPEX0203A | C212: Opex for connection services | E212: 0 | F212: 0
A213: ED_OPX3222_00004 | B213: DOPEX0204A | C213: Opex for public lighting | E213: 0 | F213: 12365
... 5 more rows

Sheet 3.2.3 Provisions
C1: REGULATORY REPORTING STATEMENT
C2: =TradingName -> Ergon Energy
C3: =CONCATENATE("Benchmarking RIN response ",CRY) -> Benchmarking RIN response 2013-14
C4: 3.2 OPERATING EXPENDITURE
C6: Instructions
C7: =CONCATENATE(TradingName, " must fill in opex in table 3.2.3 for opex categories reported in response to its annual reporting RIN.") -> Ergon Energy must fill in opex in table 3.2.3 for opex categories reported in response to its annual reporting RIN.
C9: TABLE 3.2.3 - PROVISIONS
C10: For each provision report:
E11: $000's
E12: =CRY -> 2013-14
B14: DOPEX03A | C14: Provision name
C15: Restructuring
B16: DOPEX0301A | C16: Opening balance (the carrying amount at the beginning of the period) | E16: 3811.491
C17: Additional provisions made in the period, including increases to existing provisions
B18: DOPEX0302A | C18: Opex component | E18: 211.3509283
B19: DOPEX0303A | C19: Capex component | E19: 0
B20: DOPEX0304A | C20: Other component | E20: 0
C21: Amounts used (that is, incurred and charged against the provision) during the period
B22: DOPEX0305A | C22: Opex component | E22: -2026.864127
B23: DOPEX0306A | C23: Capex component | E23: 0
B24: DOPEX0307A | C24: Other component | E24: 0
C25: Unused amounts reversed during the period
B26: DOPEX0308A | C26: Opex component | E26: 0
B27: DOPEX0309A | C27: Capex component | E27: 0
B28: DOPEX0310A | C28: Other component | E28: 0
C29: The increase during the period in the discounted amount arising from the passage of time and the effect of any change in the discount rate
B30: DOPEX0311A | C30: Opex component | E30: 0
B31: DOPEX0312A | C31: Capex component | E31: 0
B32: DOPEX0313A | C32: Other component | E32: 0
B33: DOPEX0314A | C33: Closing balance (carrying amount at the end of the period) | E33: 1995.977801
B34: DOPEX03B | C34: Provision name
C35: Employee Benefits on-cost provisions
B36: DOPEX0301B | C36: Opening balance (the carrying amount at the beginning of the period) | E36: 7029.177
C37: Additional provisions made in the period, including increases to existing provisions
B38: DOPEX0302B | C38: Opex component | E38: 189.8173042
B39: DOPEX0303B | C39: Capex component | E39: 290.4896396
B40: DOPEX0304B | C40: Other component | E40: 0
C41: Amounts used (that is, incurred and charged against the provision) during the period
B42: DOPEX0305B | C42: Opex component | E42: -203.5416856
B43: DOPEX0306B | C43: Capex component | E43: -311.4929439
B44: DOPEX0307B | C44: Other component | E44: 0
C45: Unused amounts reversed during the period
B46: DOPEX0308B | C46: Opex component | E46: 0
B47: DOPEX0309B | C47: Capex component | E47: 0
B48: DOPEX0310B | C48: Other component | E48: 0
C49: The increase during the period in the discounted amount arising from the passage of time and the effect of any change in the discount rate
B50: DOPEX0311B | C50: Opex component | E50: 0
B51: DOPEX0312B | C51: Capex component | E51: 0
B52: DOPEX0313B | C52: Other component | E52: 0
B53: DOPEX0314B | C53: Closing balance (carrying amount at the end of the period) | E53: 6994.449314
B54: DOPEX03C | C54: Provision name
C55: Rehabilitation
B56: DOPEX0301C | C56: Opening balance (the carrying amount at the beginning of the period) | E56: 3041.134
C57: Additional provisions made in the period, including increases to existing provisions
B58: DOPEX0302C | C58: Opex component | E58: 0
B59: DOPEX0303C | C59: Capex component | E59: 0
B60: DOPEX0304C | C60: Other component | E60: 0
C61: Amounts used (that is, incurred and charged against the provision) during the period
B62: DOPEX0305C | C62: Opex component | E62: -357.305
B63: DOPEX0306C | C63: Capex component | E63: 0
B64: DOPEX0307C | C64: Other component | E64: 0
C65: Unused amounts reversed during the period
B66: DOPEX0308C | C66: Opex component | E66: -666.297
B67: DOPEX0309C | C67: Capex component | E67: 0
B68: DOPEX0310C | C68: Other component | E68: 0
C69: The increase during the period in the discounted amount arising from the passage of time and the effect of any change in the discount rate
B70: DOPEX0311C | C70: Opex component | E70: 0
B71: DOPEX0312C | C71: Capex component | E71: 0
B72: DOPEX0313C | C72: Other component | E72: 0
B73: DOPEX0314C | C73: Closing balance (carrying amount at the end of the period) | E73: 2017.532
B74: DOPEX03D | C74: Provision name
C75: Other
B76: DOPEX0301D | C76: Opening balance (the carrying amount at the beginning of the period) | E76: 0
C77: Additional provisions made in the period, including increases to existing provisions
B78: DOPEX0302D | C78: Opex component | E78: 0
B79: DOPEX0303D | C79: Capex component | E79: 0
B80: DOPEX0304D | C80: Other component | E80: 0
C81: Amounts used (that is, incurred and charged against the provision) during the period
B82: DOPEX0305D | C82: Opex component | E82: 0
B83: DOPEX0306D | C83: Capex component | E83: 0
B84: DOPEX0307D | C84: Other component | E84: 0
C85: Unused amounts reversed during the period
B86: DOPEX0308D | C86: Opex component | E86: 0
B87: DOPEX0309D | C87: Capex component | E87: 0
B88: DOPEX0310D | C88: Other component | E88: 0
C89: The increase during the period in the discounted amount arising from the passage of time and the effect of any change in the discount rate
B90: DOPEX0311D | C90: Opex component | E90: 0
B91: DOPEX0312D | C91: Capex component | E91: 0
B92: DOPEX0313D | C92: Other component | E92: 0
B93: DOPEX0314D | C93: Closing balance (carrying amount at the end of the period) | E93: 0
B94: DOPEX03E | C94: Provision name
C95: Provision for Annual Leave
B96: DOPEX0301E | C96: Opening balance (the carrying amount at the beginning of the period) | E96: 33622.35
C97: Additional provisions made in the period, including increases to existing provisions
B98: DOPEX0302E | C98: Opex component | E98: 12533.44213
B99: DOPEX0303E | C99: Capex component | E99: 19180.7333
B100: DOPEX0304E | C100: Other component | E100: 0
C101: Amounts used (that is, incurred and charged against the provision) during the period
B102: DOPEX0305E | C102: Opex component | E102: -13019.31557
B103: DOPEX0306E | C103: Capex component | E103: -19924.2967
B104: DOPEX0307E | C104: Other component | E104: 0
C105: Unused amounts reversed during the period
B106: DOPEX0308E | C106: Opex component | E106: 0
B107: DOPEX0309E | C107: Capex component | E107: 0
B108: DOPEX0310E | C108: Other component | E108: 0
C109: The increase during the period in the discounted amount arising from the passage of time and the effect of any change in the discount rate
B110: DOPEX0311E | C110: Opex component | E110: 0
B111: DOPEX0312E | C111: Capex component | E111: 0
B112: DOPEX0313E | C112: Other component | E112: 0
B113: DOPEX0314E | C113: Closing balance (carrying amount at the end of the period) | E113: 32392.91316
B114: DOPEX03F | C114: Provision name
C115: Provision for Long Service Leave
B116: DOPEX0301F | C116: Opening balance (the carrying amount at the beginning of the period) | E116: 84628.858
C117: Additional provisions made in the period, including increases to existing provisions
B118: DOPEX0302F | C118: Opex component | E118: 5980.901191
B119: DOPEX0303F | C119: Capex component | E119: 9152.958098
B120: DOPEX0304F | C120: Other component | E120: 0
C121: Amounts used (that is, incurred and charged against the provision) during the period
B122: DOPEX0305F | C122: Opex component | E122: -4125.537544
B123: DOPEX0306F | C123: Capex component | E123: -6313.575675
B124: DOPEX0307F | C124: Other component | E124: 0
C125: Unused amounts reversed during the period
B126: DOPEX0308F | C126: Opex component | E126: 0
B127: DOPEX0309F | C127: Capex component | E127: 0
B128: DOPEX0310F | C128: Other component | E128: 0
C129: The increase during the period in the discounted amount arising from the passage of time and the effect of any change in the discount rate
B130: DOPEX0311F | C130: Opex component | E130: -473.1353431
B131: DOPEX0312F | C131: Capex component | E131: -724.0694725
B132: DOPEX0313F | C132: Other component | E132: 0
B133: DOPEX0314F | C133: Closing balance (carrying amount at the end of the period) | E133: 88126.39925
B134: DOPEX03G | C134: Provision name
C135: Provision for Vested Sick Leave
B136: DOPEX0301G | C136: Opening balance (the carrying amount at the beginning of the period) | E136: 1642.262
C137: Additional provisions made in the period, including increases to existing provisions
B138: DOPEX0302G | C138: Opex component | E138: 0
B139: DOPEX0303G | C139: Capex component | E139: 0
B140: DOPEX0304G | C140: Other component | E140: 0
C141: Amounts used (that is, incurred and charged against the provision) during the period
B142: DOPEX0305G | C142: Opex component | E142: -30.4136
B143: DOPEX0306G | C143: Capex component | E143: 0
B144: DOPEX0307G | C144: Other component | E144: 0
C145: Unused amounts reversed during the period
B146: DOPEX0308G | C146: Opex component | E146: 0
B147: DOPEX0309G | C147: Capex component | E147: 0
B148: DOPEX0310G | C148: Other component | E148: 0
C149: The increase during the period in the discounted amount arising from the passage of time and the effect of any change in the discount rate
B150: DOPEX0311G | C150: Opex component | E150: 0
B151: DOPEX0312G | C151: Capex component | E151: 0
B152: DOPEX0313G | C152: Other component | E152: 0
B153: DOPEX0314G | C153: Closing balance (carrying amount at the end of the period) | E153: 1611.8484
B154: DOPEX03H | C154: Provision name
C155: Provision for Super on Employee Entitlements
B156: DOPEX0301H | C156: Opening balance (the carrying amount at the beginning of the period) | E156: 13208.22
C157: Additional provisions made in the period, including increases to existing provisions
B158: DOPEX0302H | C158: Opex component | E158: 0
B159: DOPEX0303H | C159: Capex component | E159: 0
B160: DOPEX0304H | C160: Other component | E160: 0
C161: Amounts used (that is, incurred and charged against the provision) during the period
B162: DOPEX0305H | C162: Opex component | E162: -743.4022567
B163: DOPEX0306H | C163: Capex component | E163: -1137.676328
B164: DOPEX0307H | C164: Other component | E164: 0
C165: Unused amounts reversed during the period
B166: DOPEX0308H | C166: Opex component | E166: 0
B167: DOPEX0309H | C167: Capex component | E167: 0
B168: DOPEX0310H | C168: Other component | E168: 0
C169: The increase during the period in the discounted amount arising from the passage of time and the effect of any change in the discount rate
B170: DOPEX0311H | C170: Opex component | E170: 0
B171: DOPEX0312H | C171: Capex component | E171: 0
B172: DOPEX0313H | C172: Other component | E172: 0
B173: DOPEX0314H | C173: Closing balance (carrying amount at the end of the period) | E173: 11327.14142
B174: DOPEX03I | C174: Provision name
C175: Brief description of provision
B176: DOPEX0301I | C176: Opening balance (the carrying amount at the beginning of the period)
C177: Additional provisions made in the period, including increases to existing provisions
B178: DOPEX0302I | C178: Opex component
B179: DOPEX0303I | C179: Capex component
B180: DOPEX0304I | C180: Other component
C181: Amounts used (that is, incurred and charged against the provision) during the period
B182: DOPEX0305I | C182: Opex component
B183: DOPEX0306I | C183: Capex component
B184: DOPEX0307I | C184: Other component
C185: Unused amounts reversed during the period
B186: DOPEX0308I | C186: Opex component
B187: DOPEX0309I | C187: Capex component
B188: DOPEX0310I | C188: Other component
C189: The increase during the period in the discounted amount arising from the passage of time and the effect of any change in the discount rate
B190: DOPEX0311I | C190: Opex component
B191: DOPEX0312I | C191: Capex component
B192: DOPEX0313I | C192: Other component
B193: DOPEX0314I | C193: Closing balance (carrying amount at the end of the period)
B194: DOPEX03J | C194: Provision name
C195: Brief description of provision
B196: DOPEX0301J | C196: Opening balance (the carrying amount at the beginning of the period)
C197: Additional provisions made in the period, including increases to existing provisions
B198: DOPEX0302J | C198: Opex component
B199: DOPEX0303J | C199: Capex component
B200: DOPEX0304J | C200: Other component
C201: Amounts used (that is, incurred and charged against the provision) during the period
B202: DOPEX0305J | C202: Opex component
B203: DOPEX0306J | C203: Capex component
... 170 more rows

Sheet 3.3 Assets (RAB)
C1: REGULATORY REPORTING STATEMENT
C2: =TradingName -> Ergon Energy
C3: =CONCATENATE("Benchmarking RIN response ",CRY) -> Benchmarking RIN response 2013-14
C4: 3.3 ASSETS
E7: Network services | F7: Standard control services | G7: Alternative control services
E8: Actual ($000's)
E9: =CRY -> 2013-14 | F9: =CRY -> 2013-14 | G9: 2013-14
C11: TABLE 3.3.1 - REGULATORY ASSET BASE VALUES
C12: For total asset base:
A13: ED_RAB331_00001 | B13: DRAB0101 | C13: Opening value | E13: =(VLOOKUP($B13,'[1]3.3 Assets (RAB) C'!$B$13:$AJ$137,COLUMN(L1),FALSE))/1000 -> 7395283.641 | F13: =(VLOOKUP($B13,'[1]3.3 Assets (RAB) C'!$B$13:$AJ$137,COLUMN(W1),FALSE))/1000 -> 9006786.287 | G13: =(VLOOKUP($B13,'[1]3.3 Assets (RAB) C'!$B$13:$AJ$137,COLUMN(AH1),FALSE))/1000 -> 78817.27331
A14: ED_RAB331_00002 | B14: DRAB0102 | C14: Inflation addition | E14: =(VLOOKUP($B14,'[1]3.3 Assets (RAB) C'!$B$13:$AJ$137,COLUMN(L2),FALSE))/1000 -> 216681.8107 | F14: =(VLOOKUP($B14,'[1]3.3 Assets (RAB) C'!$B$13:$AJ$137,COLUMN(W2),FALSE))/1000 -> 263898.8382 | G14: =(VLOOKUP($B14,'[1]3.3 Assets (RAB) C'!$B$13:$AJ$137,COLUMN(AH2),FALSE))/1000 -> 2201.185434
A15: ED_RAB331_00003 | B15: DRAB0103 | C15: Straight line depreciation | E15: =(VLOOKUP($B15,'[1]3.3 Assets (RAB) C'!$B$13:$AJ$137,COLUMN(L3),FALSE))/1000 -> -327118.7548 | F15: =(VLOOKUP($B15,'[1]3.3 Assets (RAB) C'!$B$13:$AJ$137,COLUMN(W3),FALSE))/1000 -> -412886.7722 | G15: =(VLOOKUP($B15,'[1]3.3 Assets (RAB) C'!$B$13:$AJ$137,COLUMN(AH3),FALSE))/1000 -> -9924.78455
A16: ED_RAB331_00004 | B16: DRAB0104 | C16: Regulatory depreciation | E16: =SUM(E15+E14) -> -110436.9441 | F16: =SUM(F15+F14) -> -148987.934 | G16: =SUM(G15+G14) -> -7723.599115
A17: ED_RAB331_00005 | B17: DRAB0105 | C17: Actual additions (recognised in RAB) | E17: =(VLOOKUP($B17,'[1]3.3 Assets (RAB) C'!$B$13:$AJ$137,COLUMN(L5),FALSE))/1000 -> 613523.0222 | F17: =(VLOOKUP($B17,'[1]3.3 Assets (RAB) C'!$B$13:$AJ$137,COLUMN(W5),FALSE))/1000 -> 758752.2998 | G17: =(VLOOKUP($B17,'[1]3.3 Assets (RAB) C'!$B$13:$AJ$137,COLUMN(AH5),FALSE))/1000 -> 8841.271822
A18: ED_RAB331_00006 | B18: DRAB0106 | C18: Disposals | E18: =(VLOOKUP($B18,'[1]3.3 Assets (RAB) C'!$B$13:$AJ$137,COLUMN(L6),FALSE))/1000 -> -10212.27327 | F18: =(VLOOKUP($B18,'[1]3.3 Assets (RAB) C'!$B$13:$AJ$137,COLUMN(W6),FALSE))/1000 -> -10212.27327 | G18: =(VLOOKUP($B18,'[1]3.3 Assets (RAB) C'!$B$13:$AJ$137,COLUMN(AH6),FALSE))/1000 -> 0
A19: ED_RAB331_00007 | B19: DRAB0107 | C19: Closing value for overhead distribution asset value | E19: =SUM(E13+E14+E15+E17+E18) -> 7888157.446 | F19: =SUM(F13+F14+F15+F17+F18) -> 9606338.38 | G19: =SUM(G13+G14+G15+G17+G18) -> 79934.94602
C21: TABLE 3.3.2 - ASSET VALUE ROLL FORWARD
C22: For overhead network assets less than 33kV:
A23: ED_RAB3321_00001 | B23: DRAB0201 | C23: Opening value | E23: =(VLOOKUP($B23,'[1]3.3 Assets (RAB) C'!$B$13:$AJ$137,COLUMN(L11),FALSE))/1000 -> 2480224.071 | F23: =(VLOOKUP($B23,'[1]3.3 Assets (RAB) C'!$B$13:$AJ$137,COLUMN(W11),FALSE))/1000 -> 2949379.665 | G23: =(VLOOKUP($B23,'[1]3.3 Assets (RAB) C'!$B$13:$AJ$137,COLUMN(AH11),FALSE))/1000 -> 0
A24: ED_RAB3321_00002 | B24: DRAB0202 | C24: Inflation addition | E24: =(VLOOKUP($B24,'[1]3.3 Assets (RAB) C'!$B$13:$AJ$137,COLUMN(L12),FALSE))/1000 -> 72670.56529 | F24: =(VLOOKUP($B24,'[1]3.3 Assets (RAB) C'!$B$13:$AJ$137,COLUMN(W12),FALSE))/1000 -> 86416.82419 | G24: =(VLOOKUP($B24,'[1]3.3 Assets (RAB) C'!$B$13:$AJ$137,COLUMN(AH12),FALSE))/1000 -> 0
A25: ED_RAB3321_00003 | B25: DRAB0203 | C25: Straight line depreciation | E25: =(VLOOKUP($B25,'[1]3.3 Assets (RAB) C'!$B$13:$AJ$137,COLUMN(L13),FALSE))/1000 -> -79588.36884 | F25: =(VLOOKUP($B25,'[1]3.3 Assets (RAB) C'!$B$13:$AJ$137,COLUMN(W13),FALSE))/1000 -> -109668.5995 | G25: =(VLOOKUP($B25,'[1]3.3 Assets (RAB) C'!$B$13:$AJ$137,COLUMN(AH13),FALSE))/1000 -> 0
A26: ED_RAB3321_00004 | B26: DRAB0204 | C26: Regulatory depreciation | E26: =SUM(E25+E24) -> -6917.80355 | F26: =SUM(F25+F24) -> -23251.77533 | G26: =SUM(G25+G24) -> 0
A27: ED_RAB3321_00005 | B27: DRAB0205 | C27: Actual additions (recognised in RAB) | E27: =(VLOOKUP($B27,'[1]3.3 Assets (RAB) C'!$B$13:$AJ$137,COLUMN(L15),FALSE))/1000 -> 193326.5398 | F27: =(VLOOKUP($B27,'[1]3.3 Assets (RAB) C'!$B$13:$AJ$137,COLUMN(W15),FALSE))/1000 -> 236895.3231 | G27: =(VLOOKUP($B27,'[1]3.3 Assets (RAB) C'!$B$13:$AJ$137,COLUMN(AH15),FALSE))/1000 -> 0
A28: ED_RAB3321_00006 | B28: DRAB0206 | C28: Disposals | E28: =(VLOOKUP($B28,'[1]3.3 Assets (RAB) C'!$B$13:$AJ$137,COLUMN(L16),FALSE))/1000 -> -304.3740233 | F28: =(VLOOKUP($B28,'[1]3.3 Assets (RAB) C'!$B$13:$AJ$137,COLUMN(W16),FALSE))/1000 -> -304.3740233 | G28: =(VLOOKUP($B28,'[1]3.3 Assets (RAB) C'!$B$13:$AJ$137,COLUMN(AH16),FALSE))/1000 -> 0
A29: ED_RAB3321_00007 | B29: DRAB0207 | C29: Closing value for overhead distribution asset value | E29: =SUM(E23+E24+E25+E27+E28) -> 2666328.434 | F29: =SUM(F23+F24+F25+F27+F28) -> 3162718.839 | G29: =SUM(G23+G24+G25+G27+G28) -> 0
C30: For underground network assets less than 33kV:
A31: ED_RAB3322_00001 | B31: DRAB0301 | C31: Opening value | E31: =(VLOOKUP($B31,'[1]3.3 Assets (RAB) C'!$B$13:$AJ$137,COLUMN(L19),FALSE))/1000 -> 514131.5042 | F31: =(VLOOKUP($B31,'[1]3.3 Assets (RAB) C'!$B$13:$AJ$137,COLUMN(W19),FALSE))/1000 -> 838126.611 | G31: =(VLOOKUP($B31,'[1]3.3 Assets (RAB) C'!$B$13:$AJ$137,COLUMN(AH19),FALSE))/1000 -> 0
A32: ED_RAB3322_00002 | B32: DRAB0302 | C32: Inflation addition | E32: =(VLOOKUP($B32,'[1]3.3 Assets (RAB) C'!$B$13:$AJ$137,COLUMN(L20),FALSE))/1000 -> 15064.05307 | F32: =(VLOOKUP($B32,'[1]3.3 Assets (RAB) C'!$B$13:$AJ$137,COLUMN(W20),FALSE))/1000 -> 24557.1097 | G32: =(VLOOKUP($B32,'[1]3.3 Assets (RAB) C'!$B$13:$AJ$137,COLUMN(AH20),FALSE))/1000 -> 0
A33: ED_RAB3322_00003 | B33: DRAB0303 | C33: Straight line depreciation | E33: =(VLOOKUP($B33,'[1]3.3 Assets (RAB) C'!$B$13:$AJ$137,COLUMN(L21),FALSE))/1000 -> -11472.06907 | F33: =(VLOOKUP($B33,'[1]3.3 Assets (RAB) C'!$B$13:$AJ$137,COLUMN(W21),FALSE))/1000 -> -18635.26317 | G33: =(VLOOKUP($B33,'[1]3.3 Assets (RAB) C'!$B$13:$AJ$137,COLUMN(AH21),FALSE))/1000 -> 0
A34: ED_RAB3322_00004 | B34: DRAB0304 | C34: Regulatory depreciation | E34: =SUM(E33+E32) -> 3591.984006 | F34: =SUM(F33+F32) -> 5921.84653 | G34: =SUM(G33+G32) -> 0
A35: ED_RAB3322_00005 | B35: DRAB0305 | C35: Actual additions (recognised in RAB) | E35: =(VLOOKUP($B35,'[1]3.3 Assets (RAB) C'!$B$13:$AJ$137,COLUMN(L23),FALSE))/1000 -> 46514.49199 | F35: =(VLOOKUP($B35,'[1]3.3 Assets (RAB) C'!$B$13:$AJ$137,COLUMN(W23),FALSE))/1000 -> 72655.76197 | G35: =(VLOOKUP($B35,'[1]3.3 Assets (RAB) C'!$B$13:$AJ$137,COLUMN(AH23),FALSE))/1000 -> 0
A36: ED_RAB3322_00006 | B36: DRAB0306 | C36: Disposals | E36: =(VLOOKUP($B36,'[1]3.3 Assets (RAB) C'!$B$13:$AJ$137,COLUMN(L24),FALSE))/1000 -> 0 | F36: =(VLOOKUP($B36,'[1]3.3 Assets (RAB) C'!$B$13:$AJ$137,COLUMN(W24),FALSE))/1000 -> 0 | G36: =(VLOOKUP($B36,'[1]3.3 Assets (RAB) C'!$B$13:$AJ$137,COLUMN(AH24),FALSE))/1000 -> 0
A37: ED_RAB3322_00007 | B37: DRAB0307 | C37: Closing value for underground asset value | E37: =SUM(E31+E32+E33+E35+E36) -> 564237.9802 | F37: =SUM(F31+F32+F33+F35+F36) -> 916704.2195 | G37: =SUM(G31+G32+G33+G35+G36) -> 0
C38: For distribution substations and transformers:
A39: ED_RAB3323_00001 | B39: DRAB0401 | C39: Opening value | E39: =(VLOOKUP($B39,'[1]3.3 Assets (RAB) C'!$B$13:$AJ$137,COLUMN(L27),FALSE))/1000 -> 767551.8046 | F39: =(VLOOKUP($B39,'[1]3.3 Assets (RAB) C'!$B$13:$AJ$137,COLUMN(W27),FALSE))/1000 -> 1329004.77 | G39: =(VLOOKUP($B39,'[1]3.3 Assets (RAB) C'!$B$13:$AJ$137,COLUMN(AH27),FALSE))/1000 -> 0
A40: ED_RAB3323_00002 | B40: DRAB0402 | C40: Inflation addition | E40: =(VLOOKUP($B40,'[1]3.3 Assets (RAB) C'!$B$13:$AJ$137,COLUMN(L28),FALSE))/1000 -> 22489.26787 | F40: =(VLOOKUP($B40,'[1]3.3 Assets (RAB) C'!$B$13:$AJ$137,COLUMN(W28),FALSE))/1000 -> 38939.83976 | G40: =(VLOOKUP($B40,'[1]3.3 Assets (RAB) C'!$B$13:$AJ$137,COLUMN(AH28),FALSE))/1000 -> 0
A41: ED_RAB3323_00003 | B41: DRAB0403 | C41: Straight line depreciation | E41: =(VLOOKUP($B41,'[1]3.3 Assets (RAB) C'!$B$13:$AJ$137,COLUMN(L29),FALSE))/1000 -> -33755.85128 | F41: =(VLOOKUP($B41,'[1]3.3 Assets (RAB) C'!$B$13:$AJ$137,COLUMN(W29),FALSE))/1000 -> -58637.39259 | G41: =(VLOOKUP($B41,'[1]3.3 Assets (RAB) C'!$B$13:$AJ$137,COLUMN(AH29),FALSE))/1000 -> 0
A42: ED_RAB3323_00004 | B42: DRAB0404 | C42: Regulatory depreciation | E42: =SUM(E41+E40) -> -11266.5834 | F42: =SUM(F41+F40) -> -19697.55282 | G42: =SUM(G41+G40) -> 0
A43: ED_RAB3323_00005 | B43: DRAB0405 | C43: Actual additions (recognised in RAB) | E43: =(VLOOKUP($B43,'[1]3.3 Assets (RAB) C'!$B$13:$AJ$137,COLUMN(L31),FALSE))/1000 -> 85974.15835 | F43: =(VLOOKUP($B43,'[1]3.3 Assets (RAB) C'!$B$13:$AJ$137,COLUMN(W31),FALSE))/1000 -> 135352.1128 | G43: =(VLOOKUP($B43,'[1]3.3 Assets (RAB) C'!$B$13:$AJ$137,COLUMN(AH31),FALSE))/1000 -> 0
A44: ED_RAB3323_00006 | B44: DRAB0406 | C44: Disposals | E44: =(VLOOKUP($B44,'[1]3.3 Assets (RAB) C'!$B$13:$AJ$137,COLUMN(L32),FALSE))/1000 -> -692.7132945 | F44: =(VLOOKUP($B44,'[1]3.3 Assets (RAB) C'!$B$13:$AJ$137,COLUMN(W32),FALSE))/1000 -> -692.7132945 | G44: =(VLOOKUP($B44,'[1]3.3 Assets (RAB) C'!$B$13:$AJ$137,COLUMN(AH32),FALSE))/1000 -> 0
A45: ED_RAB3323_00007 | B45: DRAB0407 | C45: Closing value for distribution substations and transformers asset value | E45: =SUM(E39+E40+E41+E43+E44) -> 841566.6662 | F45: =SUM(F39+F40+F41+F43+F44) -> 1443966.617 | G45: =SUM(G39+G40+G41+G43+G44) -> 0
C46: For overhead network assets 33kV and above:
A47: ED_RAB3324_00001 | B47: DRAB0501 | C47: Opening value | E47: =(VLOOKUP($B47,'[1]3.3 Assets (RAB) C'!$B$13:$AJ$137,COLUMN(L35),FALSE))/1000 -> 1049831.355 | F47: =(VLOOKUP($B47,'[1]3.3 Assets (RAB) C'!$B$13:$AJ$137,COLUMN(W35),FALSE))/1000 -> 1120251.378 | G47: =(VLOOKUP($B47,'[1]3.3 Assets (RAB) C'!$B$13:$AJ$137,COLUMN(AH35),FALSE))/1000 -> 0
A48: ED_RAB3324_00002 | B48: DRAB0502 | C48: Inflation addition | E48: =(VLOOKUP($B48,'[1]3.3 Assets (RAB) C'!$B$13:$AJ$137,COLUMN(L36),FALSE))/1000 -> 30760.05869 | F48: =(VLOOKUP($B48,'[1]3.3 Assets (RAB) C'!$B$13:$AJ$137,COLUMN(W36),FALSE))/1000 -> 32823.36539 | G48: =(VLOOKUP($B48,'[1]3.3 Assets (RAB) C'!$B$13:$AJ$137,COLUMN(AH36),FALSE))/1000 -> 0
A49: ED_RAB3324_00003 | B49: DRAB0503 | C49: Straight line depreciation | E49: =(VLOOKUP($B49,'[1]3.3 Assets (RAB) C'!$B$13:$AJ$137,COLUMN(L37),FALSE))/1000 -> -32588.14612 | F49: =(VLOOKUP($B49,'[1]3.3 Assets (RAB) C'!$B$13:$AJ$137,COLUMN(W37),FALSE))/1000 -> -34590.78761 | G49: =(VLOOKUP($B49,'[1]3.3 Assets (RAB) C'!$B$13:$AJ$137,COLUMN(AH37),FALSE))/1000 -> 0
A50: ED_RAB3324_00004 | B50: DRAB0504 | C50: Regulatory depreciation | E50: =SUM(E49+E48) -> -1828.087425 | F50: =SUM(F49+F48) -> -1767.422223 | G50: =SUM(G49+G48) -> 0
A51: ED_RAB3324_00005 | B51: DRAB0505 | C51: Actual additions (recognised in RAB) | E51: =(VLOOKUP($B51,'[1]3.3 Assets (RAB) C'!$B$13:$AJ$137,COLUMN(L39),FALSE))/1000 -> 29373.0401 | F51: =(VLOOKUP($B51,'[1]3.3 Assets (RAB) C'!$B$13:$AJ$137,COLUMN(W39),FALSE))/1000 -> 35182.21121 | G51: =(VLOOKUP($B51,'[1]3.3 Assets (RAB) C'!$B$13:$AJ$137,COLUMN(AH39),FALSE))/1000 -> 0
A52: ED_RAB3324_00006 | B52: DRAB0506 | C52: Disposals | E52: =(VLOOKUP($B52,'[1]3.3 Assets (RAB) C'!$B$13:$AJ$137,COLUMN(L40),FALSE))/1000 -> 0 | F52: =(VLOOKUP($B52,'[1]3.3 Assets (RAB) C'!$B$13:$AJ$137,COLUMN(W40),FALSE))/1000 -> 0 | G52: =(VLOOKUP($B52,'[1]3.3 Assets (RAB) C'!$B$13:$AJ$137,COLUMN(AH40),FALSE))/1000 -> 0
A53: ED_RAB3324_00007 | B53: DRAB0507 | C53: Closing value for overhead asset 33kV and above value | E53: =SUM(E47+E48+E49+E51+E52) -> 1077376.307 | F53: =SUM(F47+F48+F49+F51+F52) -> 1153666.167 | G53: =SUM(G47+G48+G49+G51+G52) -> 0
C54: For underground network assets 33kV and above:
A55: ED_RAB3325_00001 | B55: DRAB0601 | C55: Opening value | E55: =(VLOOKUP($B55,'[1]3.3 Assets (RAB) C'!$B$13:$AJ$137,COLUMN(L43),FALSE))/1000 -> 54329.16704 | F55: =(VLOOKUP($B55,'[1]3.3 Assets (RAB) C'!$B$13:$AJ$137,COLUMN(W43),FALSE))/1000 -> 54329.16694 | G55: =(VLOOKUP($B55,'[1]3.3 Assets (RAB) C'!$B$13:$AJ$137,COLUMN(AH43),FALSE))/1000 -> 0
A56: ED_RAB3325_00002 | B56: DRAB0602 | C56: Inflation addition | E56: =(VLOOKUP($B56,'[1]3.3 Assets (RAB) C'!$B$13:$AJ$137,COLUMN(L44),FALSE))/1000 -> 1591.844594 | F56: =(VLOOKUP($B56,'[1]3.3 Assets (RAB) C'!$B$13:$AJ$137,COLUMN(W44),FALSE))/1000 -> 1591.844591 | G56: =(VLOOKUP($B56,'[1]3.3 Assets (RAB) C'!$B$13:$AJ$137,COLUMN(AH44),FALSE))/1000 -> 0
A57: ED_RAB3325_00003 | B57: DRAB0603 | C57: Straight line depreciation | E57: =(VLOOKUP($B57,'[1]3.3 Assets (RAB) C'!$B$13:$AJ$137,COLUMN(L45),FALSE))/1000 -> -2975.857462 | F57: =(VLOOKUP($B57,'[1]3.3 Assets (RAB) C'!$B$13:$AJ$137,COLUMN(W45),FALSE))/1000 -> -2975.857457 | G57: =(VLOOKUP($B57,'[1]3.3 Assets (RAB) C'!$B$13:$AJ$137,COLUMN(AH45),FALSE))/1000 -> 0
A58: ED_RAB3325_00004 | B58: DRAB0604 | C58: Regulatory depreciation | E58: =SUM(E57+E56) -> -1384.012868 | F58: =SUM(F57+F56) -> -1384.012865 | G58: =SUM(G57+G56) -> 0
A59: ED_RAB3325_00005 | B59: DRAB0605 | C59: Actual additions (recognised in RAB) | E59: =(VLOOKUP($B59,'[1]3.3 Assets (RAB) C'!$B$13:$AJ$137,COLUMN(L47),FALSE))/1000 -> 5076.486824 | F59: =(VLOOKUP($B59,'[1]3.3 Assets (RAB) C'!$B$13:$AJ$137,COLUMN(W47),FALSE))/1000 -> 5076.486824 | G59: =(VLOOKUP($B59,'[1]3.3 Assets (RAB) C'!$B$13:$AJ$137,COLUMN(AH47),FALSE))/1000 -> 0
A60: ED_RAB3325_00006 | B60: DRAB0606 | C60: Disposals | E60: =(VLOOKUP($B60,'[1]3.3 Assets (RAB) C'!$B$13:$AJ$137,COLUMN(L48),FALSE))/1000 -> 0 | F60: =(VLOOKUP($B60,'[1]3.3 Assets (RAB) C'!$B$13:$AJ$137,COLUMN(W48),FALSE))/1000 -> 0 | G60: =(VLOOKUP($B60,'[1]3.3 Assets (RAB) C'!$B$13:$AJ$137,COLUMN(AH48),FALSE))/1000 -> 0
A61: ED_RAB3325_00007 | B61: DRAB0607 | C61: Closing value for underground asset 33kV and above value | E61: =SUM(E55+E56+E57+E59+E60) -> 58021.64099 | F61: =SUM(F55+F56+F57+F59+F60) -> 58021.6409 | G61: =SUM(G55+G56+G57+G59+G60) -> 0
C62: Zone substations and transformers
A63: ED_RAB3326_00001 | B63: DRAB0701 | C63: Opening value | E63: =(VLOOKUP($B63,'[1]3.3 Assets (RAB) C'!$B$13:$AJ$137,COLUMN(L51),FALSE))/1000 -> 1505966.462 | F63: =(VLOOKUP($B63,'[1]3.3 Assets (RAB) C'!$B$13:$AJ$137,COLUMN(W51),FALSE))/1000 -> 1626723.984 | G63: =(VLOOKUP($B63,'[1]3.3 Assets (RAB) C'!$B$13:$AJ$137,COLUMN(AH51),FALSE))/1000 -> 0
A64: ED_RAB3326_00002 | B64: DRAB0702 | C64: Inflation addition | E64: =(VLOOKUP($B64,'[1]3.3 Assets (RAB) C'!$B$13:$AJ$137,COLUMN(L52),FALSE))/1000 -> 44124.81734 | F64: =(VLOOKUP($B64,'[1]3.3 Assets (RAB) C'!$B$13:$AJ$137,COLUMN(W52),FALSE))/1000 -> 47663.01274 | G64: =(VLOOKUP($B64,'[1]3.3 Assets (RAB) C'!$B$13:$AJ$137,COLUMN(AH52),FALSE))/1000 -> 0
A65: ED_RAB3326_00003 | B65: DRAB0703 | C65: Straight line depreciation | E65: =(VLOOKUP($B65,'[1]3.3 Assets (RAB) C'!$B$13:$AJ$137,COLUMN(L53),FALSE))/1000 -> -51346.50633 | F65: =(VLOOKUP($B65,'[1]3.3 Assets (RAB) C'!$B$13:$AJ$137,COLUMN(W53),FALSE))/1000 -> -55265.00507 | G65: =(VLOOKUP($B65,'[1]3.3 Assets (RAB) C'!$B$13:$AJ$137,COLUMN(AH53),FALSE))/1000 -> 0
A66: ED_RAB3326_00004 | B66: DRAB0704 | C66: Regulatory depreciation | E66: =SUM(E65+E64) -> -7221.688993 | F66: =SUM(F65+F64) -> -7601.992332 | G66: =SUM(G65+G64) -> 0
A67: ED_RAB3326_00005 | B67: DRAB0705 | C67: Actual additions (recognised in RAB) | E67: =(VLOOKUP($B67,'[1]3.3 Assets (RAB) C'!$B$13:$AJ$137,COLUMN(L55),FALSE))/1000 -> 135281.3884 | F67: =(VLOOKUP($B67,'[1]3.3 Assets (RAB) C'!$B$13:$AJ$137,COLUMN(W55),FALSE))/1000 -> 145447.4378 | G67: =(VLOOKUP($B67,'[1]3.3 Assets (RAB) C'!$B$13:$AJ$137,COLUMN(AH55),FALSE))/1000 -> 0
A68: ED_RAB3326_00006 | B68: DRAB0706 | C68: Disposals | E68: =(VLOOKUP($B68,'[1]3.3 Assets (RAB) C'!$B$13:$AJ$137,COLUMN(L56),FALSE))/1000 -> 0 | F68: =(VLOOKUP($B68,'[1]3.3 Assets (RAB) C'!$B$13:$AJ$137,COLUMN(W56),FALSE))/1000 -> 0 | G68: =(VLOOKUP($B68,'[1]3.3 Assets (RAB) C'!$B$13:$AJ$137,COLUMN(AH56),FALSE))/1000 -> 0
A69: ED_RAB3326_00007 | B69: DRAB0707 | C69: Closing value for zone substations and transformers | E69: =SUM(E63+E64+E65+E67+E68) -> 1634026.161 | F69: =SUM(F63+F64+F65+F67+F68) -> 1764569.43 | G69: =SUM(G63+G64+G65+G67+G68) -> 0
C70: For easements:
A71: ED_RAB3327_00001 | B71: DRAB0801 | C71: Opening value | E71: =(VLOOKUP($B71,'[1]3.3 Assets (RAB) C'!$B$13:$AJ$137,COLUMN(L59),FALSE))/1000 -> 99561.35734 | F71: =(VLOOKUP($B71,'[1]3.3 Assets (RAB) C'!$B$13:$AJ$137,COLUMN(W59),FALSE))/1000 -> 99561.35689 | G71: =(VLOOKUP($B71,'[1]3.3 Assets (RAB) C'!$B$13:$AJ$137,COLUMN(AH59),FALSE))/1000 -> 0
A72: ED_RAB3327_00002 | B72: DRAB0802 | C72: Inflation addition | E72: =(VLOOKUP($B72,'[1]3.3 Assets (RAB) C'!$B$13:$AJ$137,COLUMN(L60),FALSE))/1000 -> 2917.14777 | F72: =(VLOOKUP($B72,'[1]3.3 Assets (RAB) C'!$B$13:$AJ$137,COLUMN(W60),FALSE))/1000 -> 2917.147757 | G72: =(VLOOKUP($B72,'[1]3.3 Assets (RAB) C'!$B$13:$AJ$137,COLUMN(AH60),FALSE))/1000 -> 0
A73: ED_RAB3327_00003 | B73: DRAB0805 | C73: Actual additions (recognised in RAB) | E73: =(VLOOKUP($B73,'[1]3.3 Assets (RAB) C'!$B$13:$AJ$137,COLUMN(L61),FALSE))/1000 -> 5385.55842 | F73: =(VLOOKUP($B73,'[1]3.3 Assets (RAB) C'!$B$13:$AJ$137,COLUMN(W61),FALSE))/1000 -> 5385.55842 | G73: =(VLOOKUP($B73,'[1]3.3 Assets (RAB) C'!$B$13:$AJ$137,COLUMN(AH61),FALSE))/1000 -> 0
A74: ED_RAB3327_00004 | B74: DRAB0806 | C74: Disposals | E74: =(VLOOKUP($B74,'[1]3.3 Assets (RAB) C'!$B$13:$AJ$137,COLUMN(L62),FALSE))/1000 -> 0 | F74: =(VLOOKUP($B74,'[1]3.3 Assets (RAB) C'!$B$13:$AJ$137,COLUMN(W62),FALSE))/1000 -> 0 | G74: =(VLOOKUP($B74,'[1]3.3 Assets (RAB) C'!$B$13:$AJ$137,COLUMN(AH62),FALSE))/1000 -> 0
A75: ED_RAB3327_00005 | B75: DRAB0807 | C75: Closing value for easements asset value | E75: =SUM(E71+E72+E73+E74) -> 107864.0635 | F75: =SUM(F71+F72+F73+F74) -> 107864.0631 | G75: =SUM(G71+G72+G73+G74) -> 0
C76: For meters:
A77: ED_RAB3328_00001 | B77: DRAB0901 | C77: Opening value | E77: =(VLOOKUP($B77,'[1]3.3 Assets (RAB) C'!$B$13:$AJ$137,COLUMN(L65),FALSE))/1000 -> 21105.35762 | F77: =(VLOOKUP($B77,'[1]3.3 Assets (RAB) C'!$B$13:$AJ$137,COLUMN(W65),FALSE))/1000 -> 86823.97496 | G77: =(VLOOKUP($B77,'[1]3.3 Assets (RAB) C'!$B$13:$AJ$137,COLUMN(AH65),FALSE))/1000 -> 0
A78: ED_RAB3328_00002 | B78: DRAB0902 | C78: Inflation addition | E78: =(VLOOKUP($B78,'[1]3.3 Assets (RAB) C'!$B$13:$AJ$137,COLUMN(L66),FALSE))/1000 -> 618.3869784 | F78: =(VLOOKUP($B78,'[1]3.3 Assets (RAB) C'!$B$13:$AJ$137,COLUMN(W66),FALSE))/1000 -> 2543.942466 | G78: =(VLOOKUP($B78,'[1]3.3 Assets (RAB) C'!$B$13:$AJ$137,COLUMN(AH66),FALSE))/1000 -> 0
A79: ED_RAB3328_00003 | B79: DRAB0903 | C79: Straight line depreciation | E79: =(VLOOKUP($B79,'[1]3.3 Assets (RAB) C'!$B$13:$AJ$137,COLUMN(L67),FALSE))/1000 -> 1103.248312 | F79: =(VLOOKUP($B79,'[1]3.3 Assets (RAB) C'!$B$13:$AJ$137,COLUMN(W67),FALSE))/1000 -> -16619.62506 | G79: =(VLOOKUP($B79,'[1]3.3 Assets (RAB) C'!$B$13:$AJ$137,COLUMN(AH67),FALSE))/1000 -> 0
A80: ED_RAB3328_00004 | B80: DRAB0904 | C80: Regulatory depreciation | E80: =SUM(E79+E78) -> 1721.635291 | F80: =SUM(F79+F78) -> -14075.68259 | G80: =SUM(G79+G78) -> 0
A81: ED_RAB3328_00005 | B81: DRAB0905 | C81: Actual additions (recognised in RAB) | E81: =(VLOOKUP($B81,'[1]3.3 Assets (RAB) C'!$B$13:$AJ$137,COLUMN(L69),FALSE))/1000 -> 2806.834232 | F81: =(VLOOKUP($B81,'[1]3.3 Assets (RAB) C'!$B$13:$AJ$137,COLUMN(W69),FALSE))/1000 -> 12972.88367 | G81: =(VLOOKUP($B81,'[1]3.3 Assets (RAB) C'!$B$13:$AJ$137,COLUMN(AH69),FALSE))/1000 -> 0
A82: ED_RAB3328_00006 | B82: DRAB0906 | C82: Disposals | E82: =(VLOOKUP($B82,'[1]3.3 Assets (RAB) C'!$B$13:$AJ$137,COLUMN(L70),FALSE))/1000 -> 0 | F82: =(VLOOKUP($B82,'[1]3.3 Assets (RAB) C'!$B$13:$AJ$137,COLUMN(W70),FALSE))/1000 -> 0 | G82: =(VLOOKUP($B82,'[1]3.3 Assets (RAB) C'!$B$13:$AJ$137,COLUMN(AH70),FALSE))/1000 -> 0
A83: ED_RAB3328_00007 | B83: DRAB0907 | C83: Closing value for meters asset value | E83: =SUM(E77+E78+E79+E81+E82) -> 25633.82715 | F83: =SUM(F77+F78+F79+F81+F82) -> 85721.17604 | G83: =SUM(G77+G78+G79+G81+G82) -> 0
C84: For “other” asset items with long lives:
A85: ED_RAB3329_00001 | B85: DRAB1001 | C85: Opening value | E85: =(VLOOKUP($B85,'[1]3.3 Assets (RAB) C'!$B$13:$AJ$137,COLUMN(L73),FALSE))/1000 -> 572558.6195 | F85: =(VLOOKUP($B85,'[1]3.3 Assets (RAB) C'!$B$13:$AJ$137,COLUMN(W73),FALSE))/1000 -> 572505.6305 | G85: =(VLOOKUP($B85,'[1]3.3 Assets (RAB) C'!$B$13:$AJ$137,COLUMN(AH73),FALSE))/1000 -> 78817.27331
A86: ED_RAB3329_00002 | B86: DRAB1002 | C86: Inflation addition | E86: =(VLOOKUP($B86,'[1]3.3 Assets (RAB) C'!$B$13:$AJ$137,COLUMN(L74),FALSE))/1000 -> 16775.96755 | F86: =(VLOOKUP($B86,'[1]3.3 Assets (RAB) C'!$B$13:$AJ$137,COLUMN(W74),FALSE))/1000 -> 16774.41497 | G86: =(VLOOKUP($B86,'[1]3.3 Assets (RAB) C'!$B$13:$AJ$137,COLUMN(AH74),FALSE))/1000 -> 2201.185434
A87: ED_RAB3329_00003 | B87: DRAB1003 | C87: Straight line depreciation | E87: =(VLOOKUP($B87,'[1]3.3 Assets (RAB) C'!$B$13:$AJ$137,COLUMN(L75),FALSE))/1000 -> -51489.21704 | F87: =(VLOOKUP($B87,'[1]3.3 Assets (RAB) C'!$B$13:$AJ$137,COLUMN(W75),FALSE))/1000 -> -51620.69944 | G87: =(VLOOKUP($B87,'[1]3.3 Assets (RAB) C'!$B$13:$AJ$137,COLUMN(AH75),FALSE))/1000 -> -9924.78455
A88: ED_RAB3329_00004 | B88: DRAB1004 | C88: Regulatory depreciation | E88: =SUM(E87+E86) -> -34713.24949 | F88: =SUM(F87+F86) -> -34846.28447 | G88: =SUM(G87+G86) -> -7723.599115
A89: ED_RAB3329_00005 | B89: DRAB1005 | C89: Actual additions (recognised in RAB) | E89: =(VLOOKUP($B89,'[1]3.3 Assets (RAB) C'!$B$13:$AJ$137,COLUMN(L77),FALSE))/1000 -> 51897.59832 | F89: =(VLOOKUP($B89,'[1]3.3 Assets (RAB) C'!$B$13:$AJ$137,COLUMN(W77),FALSE))/1000 -> 51897.59832 | G89: =(VLOOKUP($B89,'[1]3.3 Assets (RAB) C'!$B$13:$AJ$137,COLUMN(AH77),FALSE))/1000 -> 8841.271822
A90: ED_RAB3329_00006 | B90: DRAB1006 | C90: Disposals | E90: =(VLOOKUP($B90,'[1]3.3 Assets (RAB) C'!$B$13:$AJ$137,COLUMN(L78),FALSE))/1000 -> -4957.406907 | F90: =(VLOOKUP($B90,'[1]3.3 Assets (RAB) C'!$B$13:$AJ$137,COLUMN(W78),FALSE))/1000 -> -4957.406907 | G90: =(VLOOKUP($B90,'[1]3.3 Assets (RAB) C'!$B$13:$AJ$137,COLUMN(AH78),FALSE))/1000 -> 0
A91: ED_RAB3329_00007 | B91: DRAB1007 | C91: Closing value for “other” asset (long life) value | E91: =SUM(E85+E86+E87+E89+E90) -> 584785.5614 | F91: =SUM(F85+F86+F87+F89+F90) -> 584599.5374 | G91: =SUM(G85+G86+G87+G89+G90) -> 79934.94602
C92: For “other” asset items with short lives:
A93: ED_RAB33210_00001 | B93: DRAB1101 | C93: Opening value | E93: =(VLOOKUP($B93,'[1]3.3 Assets (RAB) C'!$B$13:$AJ$137,COLUMN(L81),FALSE))/1000 -> 317920.7517 | F93: =(VLOOKUP($B93,'[1]3.3 Assets (RAB) C'!$B$13:$AJ$137,COLUMN(W81),FALSE))/1000 -> 317976.5582 | G93: =(VLOOKUP($B93,'[1]3.3 Assets (RAB) C'!$B$13:$AJ$137,COLUMN(AH81),FALSE))/1000 -> 0
A94: ED_RAB33210_00002 | B94: DRAB1102 | C94: Inflation addition | E94: =(VLOOKUP($B94,'[1]3.3 Assets (RAB) C'!$B$13:$AJ$137,COLUMN(L82),FALSE))/1000 -> 9315.078026 | F94: =(VLOOKUP($B94,'[1]3.3 Assets (RAB) C'!$B$13:$AJ$137,COLUMN(W82),FALSE))/1000 -> 9316.713155 | G94: =(VLOOKUP($B94,'[1]3.3 Assets (RAB) C'!$B$13:$AJ$137,COLUMN(AH82),FALSE))/1000 -> 0
A95: ED_RAB33210_00003 | B95: DRAB1103 | C95: Straight line depreciation | E95: =(VLOOKUP($B95,'[1]3.3 Assets (RAB) C'!$B$13:$AJ$137,COLUMN(L83),FALSE))/1000 -> -64730.04055 | F95: =(VLOOKUP($B95,'[1]3.3 Assets (RAB) C'!$B$13:$AJ$137,COLUMN(W83),FALSE))/1000 -> -64597.59583 | G95: =(VLOOKUP($B95,'[1]3.3 Assets (RAB) C'!$B$13:$AJ$137,COLUMN(AH83),FALSE))/1000 -> 0
A96: ED_RAB33210_00004 | B96: DRAB1104 | C96: Regulatory depreciation | E96: =SUM(E95+E94) -> -55414.96253 | F96: =SUM(F95+F94) -> -55280.88267 | G96: =SUM(G95+G94) -> 0
A97: ED_RAB33210_00005 | B97: DRAB1105 | C97: Actual additions (recognised in RAB) | E97: =(VLOOKUP($B97,'[1]3.3 Assets (RAB) C'!$B$13:$AJ$137,COLUMN(L85),FALSE))/1000 -> 57886.92579 | F97: =(VLOOKUP($B97,'[1]3.3 Assets (RAB) C'!$B$13:$AJ$137,COLUMN(W85),FALSE))/1000 -> 57886.92579 | G97: =(VLOOKUP($B97,'[1]3.3 Assets (RAB) C'!$B$13:$AJ$137,COLUMN(AH85),FALSE))/1000 -> 0
A98: ED_RAB33210_00006 | B98: DRAB1106 | C98: Disposals | E98: =(VLOOKUP($B98,'[1]3.3 Assets (RAB) C'!$B$13:$AJ$137,COLUMN(L86),FALSE))/1000 -> -4257.779041 | F98: =(VLOOKUP($B98,'[1]3.3 Assets (RAB) C'!$B$13:$AJ$137,COLUMN(W86),FALSE))/1000 -> -4257.779041 | G98: =(VLOOKUP($B98,'[1]3.3 Assets (RAB) C'!$B$13:$AJ$137,COLUMN(AH86),FALSE))/1000 -> 0
A99: ED_RAB33210_00007 | B99: DRAB1107 | C99: Closing value for “other” asset (short life) value | E99: =SUM(E93+E94+E95+E97+E98) -> 316134.936 | F99: =SUM(F93+F94+F95+F97+F98) -> 316324.8223 | G99: =SUM(G93+G94+G95+G97+G98) -> 0
C101: TABLE 3.3.3 - TOTAL DISAGGREGATED RAB ASSET VALUES
A102: ED_RAB333_00001 | B102: DRAB1201 | C102: Overhead distribution assets (wires and poles) | E102: =(VLOOKUP($B102,'[1]3.3 Assets (RAB) C'!$B$13:$AJ$137,COLUMN(L90),FALSE))/1000 -> 2573276.253 | F102: =(VLOOKUP($B102,'[1]3.3 Assets (RAB) C'!$B$13:$AJ$137,COLUMN(W90),FALSE))/1000 -> 3056049.252 | G102: =(VLOOKUP($B102,'[1]3.3 Assets (RAB) C'!$B$13:$AJ$137,COLUMN(AH90),FALSE))/1000 -> 0
A103: ED_RAB333_00002 | B103: DRAB1202 | C103: Underground distribution assets (cables, ducts etc) | E103: =(VLOOKUP($B103,'[1]3.3 Assets (RAB) C'!$B$13:$AJ$137,COLUMN(L91),FALSE))/1000 -> 539184.7422 | F103: =(VLOOKUP($B103,'[1]3.3 Assets (RAB) C'!$B$13:$AJ$137,COLUMN(W91),FALSE))/1000 -> 877415.4152 | G103: =(VLOOKUP($B103,'[1]3.3 Assets (RAB) C'!$B$13:$AJ$137,COLUMN(AH91),FALSE))/1000 -> 0
A104: ED_RAB333_00003 | B104: DRAB1203 | C104: Distribution substations including transformers | E104: =(VLOOKUP($B104,'[1]3.3 Assets (RAB) C'!$B$13:$AJ$137,COLUMN(L92),FALSE))/1000 -> 804559.2354 | F104: =(VLOOKUP($B104,'[1]3.3 Assets (RAB) C'!$B$13:$AJ$137,COLUMN(W92),FALSE))/1000 -> 1386485.693 | G104: =(VLOOKUP($B104,'[1]3.3 Assets (RAB) C'!$B$13:$AJ$137,COLUMN(AH92),FALSE))/1000 -> 0
A105: ED_RAB333_00004 | B105: DRAB1204 | C105: Overhead assets 33kV and above (wires and towers / poles etc) | E105: =(VLOOKUP($B105,'[1]3.3 Assets (RAB) C'!$B$13:$AJ$137,COLUMN(L93),FALSE))/1000 -> 1063603.831 | F105: =(VLOOKUP($B105,'[1]3.3 Assets (RAB) C'!$B$13:$AJ$137,COLUMN(W93),FALSE))/1000 -> 1136958.773 | G105: =(VLOOKUP($B105,'[1]3.3 Assets (RAB) C'!$B$13:$AJ$137,COLUMN(AH93),FALSE))/1000 -> 0
A106: ED_RAB333_00005 | B106: DRAB1205 | C106: Underground assets 33kV and above (cables, ducts etc) | E106: =(VLOOKUP($B106,'[1]3.3 Assets (RAB) C'!$B$13:$AJ$137,COLUMN(L94),FALSE))/1000 -> 56175.40402 | F106: =(VLOOKUP($B106,'[1]3.3 Assets (RAB) C'!$B$13:$AJ$137,COLUMN(W94),FALSE))/1000 -> 56175.40392 | G106: =(VLOOKUP($B106,'[1]3.3 Assets (RAB) C'!$B$13:$AJ$137,COLUMN(AH94),FALSE))/1000 -> 0
A107: ED_RAB333_00006 | B107: DRAB1206 | C107: Zone substations | E107: =(VLOOKUP($B107,'[1]3.3 Assets (RAB) C'!$B$13:$AJ$137,COLUMN(L95),FALSE))/1000 -> 1569996.312 | F107: =(VLOOKUP($B107,'[1]3.3 Assets (RAB) C'!$B$13:$AJ$137,COLUMN(W95),FALSE))/1000 -> 1695646.707 | G107: =(VLOOKUP($B107,'[1]3.3 Assets (RAB) C'!$B$13:$AJ$137,COLUMN(AH95),FALSE))/1000 -> 0
A108: ED_RAB333_00007 | B108: DRAB1207 | C108: Easements | E108: =(VLOOKUP($B108,'[1]3.3 Assets (RAB) C'!$B$13:$AJ$137,COLUMN(L96),FALSE))/1000 -> 103712.7104 | F108: =(VLOOKUP($B108,'[1]3.3 Assets (RAB) C'!$B$13:$AJ$137,COLUMN(W96),FALSE))/1000 -> 103712.71 | G108: =(VLOOKUP($B108,'[1]3.3 Assets (RAB) C'!$B$13:$AJ$137,COLUMN(AH96),FALSE))/1000 -> 0
A109: ED_RAB333_00008 | B109: DRAB1208 | C109: Meters | E109: =(VLOOKUP($B109,'[1]3.3 Assets (RAB) C'!$B$13:$AJ$137,COLUMN(L97),FALSE))/1000 -> 23369.59238 | F109: =(VLOOKUP($B109,'[1]3.3 Assets (RAB) C'!$B$13:$AJ$137,COLUMN(W97),FALSE))/1000 -> 86272.5755 | G109: =(VLOOKUP($B109,'[1]3.3 Assets (RAB) C'!$B$13:$AJ$137,COLUMN(AH97),FALSE))/1000 -> 0
A110: ED_RAB333_00009 | B110: DRAB1209 | C110: Other assets with long lives (please specify) | E110: =(VLOOKUP($B110,'[1]3.3 Assets (RAB) C'!$B$13:$AJ$137,COLUMN(L98),FALSE))/1000 -> 578672.0904 | F110: =(VLOOKUP($B110,'[1]3.3 Assets (RAB) C'!$B$13:$AJ$137,COLUMN(W98),FALSE))/1000 -> 578552.584 | G110: =(VLOOKUP($B110,'[1]3.3 Assets (RAB) C'!$B$13:$AJ$137,COLUMN(AH98),FALSE))/1000 -> 78145.20065
A111: ED_RAB333_00010 | B111: DRAB1210 | C111: Other assets with short lives (please specify) | E111: =(VLOOKUP($B111,'[1]3.3 Assets (RAB) C'!$B$13:$AJ$137,COLUMN(L99),FALSE))/1000 -> 317027.8438 | F111: =(VLOOKUP($B111,'[1]3.3 Assets (RAB) C'!$B$13:$AJ$137,COLUMN(W99),FALSE))/1000 -> 317150.6902 | G111: =(VLOOKUP($B111,'[1]3.3 Assets (RAB) C'!$B$13:$AJ$137,COLUMN(AH99),FALSE))/1000 -> 0
C113: Capital Contributions
A114: ED_RAB333_00011 | B114: DRAB13 | C114: Value of Capital Contributions or Contributed Assets | E114: =(VLOOKUP($B114,'[1]3.3 Assets (RAB) C'!$B$13:$AJ$137,COLUMN(L102),FALSE))/1000 -> 0 | F114: =(VLOOKUP($B114,'[1]3.3 Assets (RAB) C'!$B$13:$AJ$137,COLUMN(W102),FALSE))/1000 -> 59990.6 | G114: =(VLOOKUP($B114,'[1]3.3 Assets (RAB) C'!$B$13:$AJ$137,COLUMN(AH102),FALSE))/1000 -> 0
E116: Network services | F116: Standard control services | G116: Alternative control services
C117: TABLE 3.3.4 - ASSET LIVES | E117: Service Life (Years)
C118: Table 3.3.4.1 Asset Lives – estimated service life of new assets | E118: =CRY -> 2013-14 | F118: =CRY -> 2013-14 | G118: 2013-14
A119: ED_RAB3341_00001 | B119: DRAB1401 | C119: Overhead network assets less than 33kV (wires and poles) | E119: 48.3 | F119: 48.3 | G119: 45
A120: ED_RAB3341_00002 | B120: DRAB1402 | C120: Underground network assets less than 33kV (cables) | E120: 56.8 | F120: 56.8 | G120: 60
A121: ED_RAB3341_00003 | B121: DRAB1403 | C121: Distribution substations including transformers | E121: 44.8 | F121: 44.8 | G121: 45
A122: ED_RAB3341_00004 | B122: DRAB1404 | C122: Overhead network assets 33kV and above (wires and towers / poles etc) | E122: 50.1 | F122: 50.1 | G122: 55
A123: ED_RAB3341_00005 | B123: DRAB1405 | C123: Underground network assets 33kV and above(cables, ducts etc) | E123: 45 | F123: 45 | G123: 45
A124: ED_RAB3341_00006 | B124: DRAB1406 | C124: Zone substations and transformers | E124: 38.2 | F124: 38.2 | G124: 46.5
A125: ED_RAB3341_00007 | B125: DRAB1407 | C125: Meters | E125: 14.6 | F125: 14.6 | G125: 0
A126: ED_RAB3341_00008 | B126: DRAB1408 | C126: “Other” assets with long lives | E126: 22.3 | F126: 22.3 | G126: 20
A127: ED_RAB3341_00009 | B127: DRAB1409 | C127: “Other” assets with short lives | E127: 6.9 | F127: 6.9 | G127: 0
C129: Table 3.3.4.2 Asset Lives – estimated residual service life
A130: ED_RAB3342_00001 | B130: DRAB1501 | C130: Overhead network assets less than 33kV (wires and poles) | E130: 25.5 | F130: 25.5 | G130: 44.2
A131: ED_RAB3342_00002 | B131: DRAB1502 | C131: Underground network assets less than 33kV (cables) | E131: 47.9 | F131: 47.9 | G131: 58.7
A132: ED_RAB3342_00003 | B132: DRAB1503 | C132: Distribution substations including transformers | E132: 29.5 | F132: 29.5 | G132: 43.9
A133: ED_RAB3342_00004 | B133: DRAB1504 | C133: Overhead network assets 33kV and above (wires and towers / poles etc) | E133: 26.7 | F133: 26.7 | G133: 54.5
A134: ED_RAB3342_00005 | B134: DRAB1505 | C134: Underground network assets 33kV and above (cables, ducts etc) | E134: 36.1 | F134: 36.1 | G134: 43.5
A135: ED_RAB3342_00006 | B135: DRAB1506 | C135: Zone substations and transformers | E135: 25.5 | F135: 25.5 | G135: 44.8
A136: ED_RAB3342_00007 | B136: DRAB1507 | C136: Meters | E136: 10.4 | F136: 10.4 | G136: 13.7
A137: ED_RAB3342_00008 | B137: DRAB1508 | C137: “Other” assets with long lives | E137: 16.5 | F137: 16.5 | G137: 11
A138: ED_RAB3342_00009 | B138: DRAB1509 | C138: “Other” assets with short lives | E138: 3 | F138: 3 | G138: 0

Sheet 3.4 Operational data
C1: REGULATORY REPORTING STATEMENT
C2: =TradingName -> Ergon Energy
C3: =CONCATENATE("Benchmarking RIN response ",CRY) -> Benchmarking RIN response 2013-14
C4: 3.4 OPERATIONAL DATA
E7: Standard control services
E8: Actual
E9: =CRY -> 2013-14
D10: Unit
C11: TABLE 3.4.1 - ENERGY DELIVERY
A12: ED_OPD3410_00001 | B12: DOPED01 | C12: Total energy delivered | D12: GWh | E12: 13716.2449
C15: Table 3.4.1.1 Energy grouping - delivery by chargeable quantity
A16: ED_OPD3411_00001 | B16: DOPED0201 | C16: Energy Delivery where time of use is not a determinant | D16: GWh | E16: 12785.9884
A17: ED_OPD3411_00002 | B17: DOPED0202 | C17: Energy Delivery at On-peak times | D17: GWh | E17: 0
A18: ED_OPD3411_00003 | B18: DOPED0203 | C18: Energy Delivery at Shoulder times | D18: GWh | E18: 0
A19: ED_OPD3411_00004 | B19: DOPED0204 | C19: Energy Delivery at Off-peak times | D19: GWh | E19: 0
A20: ED_OPD3411_00005 | B20: DOPED0205 | C20: Controlled load energy deliveries | D20: GWh | E20: 846.0221603
A21: ED_OPD3411_00005 | B21: DOPED0206 | C21: Energy Delivery to unmetered supplies | D21: GWh | E21: 84.2343379
C23: Table 3.4.1.2 Energy - received from TNSP and other DNSPs by time of receipt
A24: ED_OPD3412_00001 | B24: DOPED0301 | C24: Energy into DNSP network at On-peak times | D24: GWh | E24: 0
A25: ED_OPD3412_00002 | B25: DOPED0302 | C25: Energy into DNSP network at Shoulder times | D25: GWh | E25: 0
A26: ED_OPD3412_00003 | B26: DOPED0303 | C26: Energy into DNSP network at Off-peak times | D26: GWh | E26: 0
A27: ED_OPD3412_00004 | B27: DOPED0304 | C27: Energy received from TNSP and other DNSPs not included in the above categories | D27: GWh | E27: 12954.43385
C29: Table 3.4.1.3 Energy - received into DNSP system from embedded generation by time of receipt
A30: ED_OPD3413_00001 | B30: DOPED0401 | C30: Energy into DNSP network at On-peak times from non-residential embedded generation | D30: GWh | E30: 0
A31: ED_OPD3413_00002 | B31: DOPED0402 | C31: Energy into DNSP network at Shoulder times from non-residential embedded generation | D31: GWh | E31: 0
A32: ED_OPD3413_00003 | B32: DOPED0403 | C32: Energy into DNSP network at Off-peak times from non-residential embedded generation | D32: GWh | E32: 0
A33: ED_OPD3413_00004 | B33: DOPED0404 | C33: Energy received from embedded generation not included in above categories from non-residential embedded generation | D33: GWh | E33: 1172.939844
A34: ED_OPD3413_00005 | B34: DOPED0405 | C34: Energy into DNSP network at On-peak times from residential embedded generation | D34: GWh | E34: 0
A35: ED_OPD3413_00006 | B35: DOPED0406 | C35: Energy into DNSP network at Shoulder times from residential embedded generation | D35: GWh | E35: 0
A36: ED_OPD3413_00007 | B36: DOPED0407 | C36: Energy into DNSP network at Off-peak times from residential embedded generation | D36: GWh | E36: 0
A37: ED_OPD3413_00008 | B37: DOPED0408 | C37: Energy received from embedded generation not included in above categories from residential embedded generation | D37: GWh | E37: 267.641122
C39: Table 3.4.1.4 Energy grouping - customer type or class
A40: ED_OPD3414_00001 | B40: DOPED0501 | C40: Residential customers energy deliveries | D40: GWh | E40: 4305.233243
A41: ED_OPD3414_00002 | B41: DOPED0502 | C41: Non residential customers not on demand tariffs energy deliveries | D41: GWh | E41: 1001.227991
A42: ED_OPD3414_00003 | B42: DOPED0503 | C42: Non-residential low voltage demand tariff customers energy deliveries | D42: GWh | E42: 3089.906807
A43: ED_OPD3414_00004 | B43: DOPED0504 | C43: Non-residential high voltage demand tariff customers energy deliveries | D43: GWh | E43: 5235.642517
A44: ED_OPD3414_00005 | B44: DOPED0505 | C44: Other Customer Class Energy Deliveries | D44: GWh | E44: 84.2343379
C46: TABLE 3.4.2 - CUSTOMER NUMBERS
C47: Table 3.4.2.1 Distribution customer numbers by customer type or class
A48: ED_OPD3421_00001 | B48: DOPCN0101 | C48: Residential customer numbers | D48: number | E48: 607276
A49: ED_OPD3421_00002 | B49: DOPCN0102 | C49: Non residential customers not on demand tariff customer numbers | D49: number | E49: 105435
A50: ED_OPD3421_00003 | B50: DOPCN0103 | C50: Low voltage demand tariff customer numbers | D50: number | E50: 8385
A51: ED_OPD3421_00004 | B51: DOPCN0104 | C51: High voltage demand tariff customer numbers | D51: number | E51: 70.5
A52: ED_OPD3421_00005 | B52: DOPCN0105 | C52: Unmetered Customer Numbers | D52: number | E52: 762.5
A53: ED_OPD3421_00006 | B53: DOPCN0106 | C53: Other Customer Numbers | D53: number | E53: 1
A54: ED_OPD3421_99999 | B54: DOPCN01 | C54: Total customer numbers | D54: number | E54: =SUM(E48:E53) -> 721930
C56: Table 3.4.2.2 Distribution customer numbers by location on the network
A57: ED_OPD3422_00001 | B57: DOPCN0201 | C57: Customers on CBD network | D57: number | E57: 0
A58: ED_OPD3422_00002 | B58: DOPCN0202 | C58: Customers on Urban network | D58: number | E58: 247256.5
A59: ED_OPD3422_00003 | B59: DOPCN0203 | C59: Customers on Short rural network | D59: number | E59: 387236
A60: ED_OPD3422_00004 | B60: DOPCN0204 | C60: Customers on Long rural network | D60: number | E60: 77986
A61: ED_OPD3422_99999 | B61: DOPCN02 | C61: Total customer numbers | D61: number | E61: =SUM(E57:E60) -> 712478.5
C63: Table 3.4.2.3 Distribution customer numbers by Aurora Feeder categories (Aurora only)
A64: ED_OPD3423_00001 | C64: Critical Infrastructure | D64: number
A65: ED_OPD3423_00002 | C65: High Density Commercial | D65: number
A66: ED_OPD3423_00003 | C66: Urban | D66: number
A67: ED_OPD3423_00004 | C67: High Density Rural | D67: number
A68: ED_OPD3423_00005 | C68: Low Density Rural | D68: number
A69: ED_OPD3423_99999 | C69: Total customer numbers | D69: number | E69: =SUM(E64:E68) -> 0
C71: Table 3.4.2.4 Unmetered Supply
A72: ED_OPD3424_00001 | B72: DOPCN0301 | C72: Number of unmetered connections reported in customer numbers in the economic benchmarking RIN | D72: number
A73: ED_OPD3424_00002 | B73: DOPCN0302 | C73: Unmetered connections not reported in customer numbers in the economic benchmarking RIN | D73: number
A74: ED_OPD3424_99999 | B74: DOPCN0303 | C74: Total unmetered connections | D74: number
C76: TABLE 3.4.3 - SYSTEM DEMAND
C77: Table 3.4.3.1 Annual system maximum demand characteristics at the zone substation level – MW measure
A78: ED_OPD3431_00001 | B78: DOPSD0101 | C78: Non-coincident Summated Raw System Annual Maximum Demand | D78: MW | E78: 3196.138
A79: ED_OPD3431_00002 | B79: DOPSD0102 | C79: Non–coincident Summated Weather Adjusted System Annual Maximum Demand 10% POE | D79: MW | E79: 3351.39575
A80: ED_OPD3431_00003 | B80: DOPSD0103 | C80: Non–coincident Summated Weather Adjusted System Annual Maximum Demand 50% POE | D80: MW | E80: 3221.556058
A81: ED_OPD3431_00004 | B81: DOPSD0104 | C81: Coincident Raw System Annual Maximum Demand | D81: MW | E81: 2405.12055
A82: ED_OPD3431_00005 | B82: DOPSD0105 | C82: Coincident Weather Adjusted System Annual Maximum Demand 10% POE | D82: MW | E82: 2516.864248
A83: ED_OPD3431_00006 | B83: DOPSD0106 | C83: Coincident Weather Adjusted System Annual Maximum Demand 50% POE | D83: MW | E83: 2412.662065
C85: Table 3.4.3.2 Annual system maximum demand characteristics at the transmission connection point – MW measure
A86: ED_OPD3432_00001 | B86: DOPSD0107 | C86: Non-coincident Summated Raw System Annual Maximum Demand | D86: MW | E86: 3083.367
A87: ED_OPD3432_00002 | B87: DOPSD0108 | C87: Non–coincident Summated Weather Adjusted System Annual Maximum Demand 10% POE | D87: MW | E87: 3321.068841
A88: ED_OPD3432_00003 | B88: DOPSD0109 | C88: Non–coincident Summated Weather Adjusted System Annual Maximum Demand 50% POE | D88: MW | E88: 3084.317499
A89: ED_OPD3432_00004 | B89: DOPSD0110 | C89: Coincident Raw System Annual Maximum Demand | D89: MW | E89: 2441.078078
A90: ED_OPD3432_00005 | B90: DOPSD0111 | C90: Coincident Weather Adjusted System Annual Maximum Demand 10% POE | D90: MW | E90: 2667.126947
A91: ED_OPD3432_00006 | B91: DOPSD0112 | C91: Coincident Weather Adjusted System Annual Maximum Demand 50% POE | D91: MW | E91: 2472.857545
C93: Table 3.4.3.3 Annual system maximum demand characteristics at the zone substation level – MVA measure
A94: ED_OPD3433_00001 | B94: DOPSD0201 | C94: Non–coincident Summated Raw System Annual Maximum Demand | D94: MVA | E94: 3426.917
A95: ED_OPD3433_00002 | B95: DOPSD0202 | C95: Non–coincident Summated Weather Adjusted System Annual Maximum Demand 10% POE | D95: MVA | E95: 3588.188435
A96: ED_OPD3433_00003 | B96: DOPSD0203 | C96: Non–coincident Summated Weather Adjusted System Annual Maximum Demand 50% POE | D96: MVA | E96: 3451.798577
A97: ED_OPD3433_00004 | B97: DOPSD0204 | C97: Coincident Raw System Annual Maximum Demand | D97: MVA | E97: 2477.923121
A98: ED_OPD3433_00005 | B98: DOPSD0205 | C98: Coincident Weather Adjusted System Annual Maximum Demand 10% POE | D98: MVA | E98: 2591.948564
A99: ED_OPD3433_00006 | B99: DOPSD0206 | C99: Coincident Weather Adjusted System Annual Maximum Demand 50% POE | D99: MVA | E99: 2485.256793
C101: Table 3.4.3.4 Annual system maximum demand characteristics at the transmission connection point – MVA measure
A102: ED_OPD3434_00001 | B102: DOPSD0207 | C102: Non–coincident Summated Raw System Annual Maximum Demand | D102: MVA | E102: 3173.363
A103: ED_OPD3434_00002 | B103: DOPSD0208 | C103: Non–coincident Summated Weather Adjusted System Annual Maximum Demand 10% POE | D103: MVA | E103: 3422.333715
A104: ED_OPD3434_00003 | B104: DOPSD0209 | C104: Non–coincident Summated Weather Adjusted System Annual Maximum Demand 50% POE | D104: MVA | E104: 3177.084015
A105: ED_OPD3434_00004 | B105: DOPSD0210 | C105: Coincident Raw System Annual Maximum Demand | D105: MVA | E105: 2463.241423
A106: ED_OPD3434_00005 | B106: DOPSD0211 | C106: Coincident Weather Adjusted System Annual Maximum Demand 10% POE | D106: MVA | E106: 2694.664017
A107: ED_OPD3434_00006 | B107: DOPSD0212 | C107: Coincident Weather Adjusted System Annual Maximum Demand 50% POE | D107: MVA | E107: 2497.850423
C109: Table 3.4.3.5 Power factor conversion between MVA and MW
A110: ED_OPD3435_00001 | B110: DOPSD0301 | C110: Average overall network power factor conversion between MVA and MW | D110: Factor | E110: 0.9706195197
A111: ED_OPD3435_00002 | B111: DOPSD0302 | C111: Average power factor conversion for low voltage distribution lines | D111: Factor | E111: 0.957
A112: ED_OPD3435_00003 | B112: DOPSD0303 | C112: Average power factor conversion for 3.3 kV lines | D112: Factor | E112: 0.8626491626
A113: ED_OPD3435_00004 | B113: DOPSD0304 | C113: Average power factor conversion for 6.6 kV lines | D113: Factor | E113: 0.6786215901
A114: ED_OPD3435_00005 | B114: DOPSD0305 | C114: Average power factor conversion for 7.6 kV lines | D114: Factor | E114: 0
A115: ED_OPD3435_00006 | B115: DOPSD0306 | C115: Average power factor conversion for 11 kV lines | D115: Factor | E115: 0.873
A116: ED_OPD3435_00007 | B116: DOPSD0307 | C116: Average power factor conversion for SWER lines | D116: Factor | E116: 0.78
A117: ED_OPD3435_00008 | B117: DOPSD0308 | C117: Average power factor conversion for 22 kV lines | D117: Factor | E117: 0.896
A118: ED_OPD3435_00009 | B118: DOPSD0309 | C118: Average power factor conversion for 33 kV lines | D118: Factor | E118: 0.878
A119: ED_OPD3435_00010 | B119: DOPSD0310 | C119: Average power factor conversion for 44 kV lines | D119: Factor | E119: 0
A120: ED_OPD3435_00011 | B120: DOPSD0311 | C120: Average power factor conversion for 66 kV lines | D120: Factor | E120: 0.909
A121: ED_OPD3435_00012 | B121: DOPSD0312 | C121: Average power factor conversion for 110 kV lines | D121: Factor | E121: 0.941
A122: ED_OPD3435_00013 | B122: DOPSD0313 | C122: Average power factor conversion for 132 kV lines | D122: Factor | E122: 0.889
A123: ED_OPD3435_00013 | B123: DOPSD0314 | C123: Average power factor conversion for 220 kV lines | D123: Factor | E123: 0.9453660647
C125: Table 3.4.3.6 Demand supplied (for customers charged on this basis) – MW measure
A126: ED_OPD3436_00001 | B126: DOPSD0401 | C126: Summated Chargeable Contracted Maximum Demand | D126: MW | E126: 28747.35973
A127: ED_OPD3436_00002 | B127: DOPSD0402 | C127: Summated Chargeable Measured Maximum Demand | D127: MW | E127: 12394.1491
C128: Table 3.4.3.7 Demand supplied (for customers charged on this basis) – MVA measure
A129: ED_OPD3437_00001 | B129: DOPSD0403 | C129: Summated Chargeable Contracted Maximum Demand | D129: MVA | E129: 0
A130: ED_OPD3437_00002 | B130: DOPSD0404 | C130: Summated Chargeable Measured Maximum Demand | D130: MVA | E130: 0

Sheet 3.5 Physical assets
C1: REGULATORY REPORTING STATEMENT
C2: =TradingName -> Ergon Energy
C3: =CONCATENATE("Benchmarking RIN response ",CRY) -> Benchmarking RIN response 2013-14
C4: 3.5 PHYSICAL ASSETS
E8: Actual
E9: =CRY -> 2013-14
D10: Unit
C11: TABLE 3.5.1 - NETWORK CAPACITIES
C12: Circuit length
C13: Table 3.5.1.1 Overhead network length of circuit at each voltage
A14: ED_PHA3511_00001 | B14: DPA0101 | C14: Overhead low voltage distribution | D14: km | E14: ='[2]3.5 Physical assets_CON_Recast'!K13 -> 16269.9879
A15: ED_PHA3511_00002 | B15: DPA0102 | C15: Overhead 2.2 kV | D15: km | E15: ='[2]3.5 Physical assets_CON_Recast'!K14 -> 0
A16: ED_PHA3511_00003 | B16: DPA0103 | C16: Overhead 6.6kv | D16: km | E16: ='[2]3.5 Physical assets_CON_Recast'!K15 -> 13.86970855
A17: ED_PHA3511_00004 | B17: DPA0104 | C17: Overhead 7.6 kV | D17: km | E17: ='[2]3.5 Physical assets_CON_Recast'!K16 -> 0
A18: ED_PHA3511_00005 | B18: DPA0105 | C18: Overhead 11 kV | D18: km | E18: ='[2]3.5 Physical assets_CON_Recast'!K17 -> 34516.27818
A19: ED_PHA3511_00006 | B19: DPA0106 | C19: Overhead SWER | D19: km | E19: ='[2]3.5 Physical assets_CON_Recast'!K18 -> 62418.43679
A20: ED_PHA3511_00007 | B20: DPA0107 | C20: Overhead 22 kV | D20: km | E20: ='[2]3.5 Physical assets_CON_Recast'!K19 -> 14595.60823
A21: ED_PHA3511_00008 | B21: DPA0108 | C21: Overhead 33 kV | D21: km | E21: ='[2]3.5 Physical assets_CON_Recast'!K20 -> 4058.78851
A22: ED_PHA3511_00009 | B22: DPA0109 | C22: Overhead 44 kV | D22: km | E22: ='[2]3.5 Physical assets_CON_Recast'!K21 -> 0
A23: ED_PHA3511_00010 | B23: DPA0110 | C23: Overhead 66 kV | D23: km | E23: ='[2]3.5 Physical assets_CON_Recast'!K22 -> 7836.338915
A24: ED_PHA3511_00011 | B24: DPA0111 | C24: Overhead 110kV | D24: km | E24: ='[2]3.5 Physical assets_CON_Recast'!K23 -> 504.8139617
A25: ED_PHA3511_00012 | B25: DPA0112 | C25: Overhead 132 kV | D25: km | E25: ='[2]3.5 Physical assets_CON_Recast'!K24 -> 2404.112048
A26: ED_PHA3511_00013 | B26: DPA0113 | C26: Overhead 220kV | D26: km | E26: ='[2]3.5 Physical assets_CON_Recast'!K25 -> 0
A27: ED_PHA3511_00014 | B27: DPA0114 | C27: Other | D27: km | E27: ='[2]3.5 Physical assets_CON_Recast'!K26 -> 0.02359022483
B28: DPA01 | C28: Total overhead circuit km | D28: km | E28: =SUM(E14:E27) -> 142618.2578
C30: Table 3.5.1.2 Underground network circuit length at each voltage
A31: ED_PHA3512_00001 | B31: DPA0201 | C31: Underground low voltage distribution | D31: km | E31: 6101.488166
A32: ED_PHA3512_00002 | B32: DPA0202 | C32: Underground 5 kV | D32: km
A33: ED_PHA3512_00003 | B33: DPA0203 | C33: Underground 6.6 Kv | D33: km | E33: 0.2823295618
A34: ED_PHA3512_00004 | B34: DPA0204 | C34: Underground 7.6 kV | D34: km
A35: ED_PHA3512_00005 | B35: DPA0205 | C35: Underground 11 kV | D35: km | E35: 1651.352366
A36: ED_PHA3512_00006 | B36: DPA0206 | C36: Underground SWER | D36: km | E36: 16.47865323
A37: ED_PHA3512_00007 | B37: DPA0207 | C37: Underground 22 kV | D37: km | E37: 655.0488338
A38: ED_PHA3512_00008 | B38: DPA0208 | C38: Underground 33 kV | D38: km | E38: 52.03876514
A39: ED_PHA3512_00010 | B39: DPA0209 | C39: Underground 66 kV | D39: km | E39: 17.69287209
A40: ED_PHA3512_00009 | B40: DPA0210 | C40: Underground 110 kV | D40: km
A41: ED_PHA3512_00010 | B41: DPA0211 | C41: Underground 132 kV | D41: km | E41: 9.171018911
A42: ED_PHA3512_00011 | B42: DPA0212 | C42: Other | D42: km | E42: 0
B43: DPA02 | C43: Total underground circuit km | D43: km | E43: =SUM(E31:E42) -> 8503.553004
C45: Circuit Capacity MVA
C46: Table 3.5.1.3 Estimated overhead network weighted average MVA capacity by voltage class
A47: ED_PHA3513_00001 | B47: DPA0301 | C47: Overhead low voltage distribution | D47: MVA | E47: ='[3]3.5 Physical assets_CON'!K45 -> 0.06352532
A48: ED_PHA3513_00002 | B48: DPA0302 | C48: Overhead 6.6 kV | D48: MVA | E48: ='[3]3.5 Physical assets_CON'!K46 -> 1.566
A49: ED_PHA3513_00003 | B49: DPA0303 | C49: Overhead 7.6 kV | D49: MVA | E49: ='[3]3.5 Physical assets_CON'!K47 -> 0
A50: ED_PHA3513_00004 | B50: DPA0304 | C50: Overhead 11 kV | D50: MVA | E50: ='[3]3.5 Physical assets_CON'!K48 -> 1.755
A51: ED_PHA3513_00005 | B51: DPA0305 | C51: Overhead SWER | D51: MVA | E51: ='[3]3.5 Physical assets_CON'!K49 -> 0.608
A52: ED_PHA3513_00006 | B52: DPA0306 | C52: Overhead 22 kV | D52: MVA | E52: ='[3]3.5 Physical assets_CON'!K50 -> 3.209
A53: ED_PHA3513_00007 | B53: DPA0307 | C53: Overhead 33 kV | D53: MVA | E53: ='[3]3.5 Physical assets_CON'!K51 -> 8.921
A54: ED_PHA3513_00008 | B54: DPA0308 | C54: Overhead 44 kV | D54: MVA | E54: ='[3]3.5 Physical assets_CON'!K52 -> 0
A55: ED_PHA3513_00009 | B55: DPA0309 | C55: Overhead 66 kV | D55: MVA | E55: ='[3]3.5 Physical assets_CON'!K53 -> 29.831
A56: ED_PHA3513_00010 | B56: DPA0310 | C56: Overhead 110 kV | D56: MVA | E56: ='[3]3.5 Physical assets_CON'!K54 -> 52.677
A57: ED_PHA3513_00011 | B57: DPA0311 | C57: Overhead 132 kV | D57: MVA | E57: ='[3]3.5 Physical assets_CON'!K55 -> 98.639
A58: ED_PHA3513_00012 | B58: DPA0312 | C58: Overhead 220 kV | D58: MVA | E58: ='[3]3.5 Physical assets_CON'!K56 -> 0
A59: ED_PHA3513_00013 | B59: DPA0313 | C59: Other | D59: MVA | E59: ='[3]3.5 Physical assets_CON'!K57 -> 0
C61: Table 3.5.1.4 Estimated underground network weighted average MVA capacity by voltage class
A62: ED_PHA3514_00001 | B62: DPA0401 | C62: Underground low voltage distribution | D62: MVA | E62: ='[3]3.5 Physical assets_CON'!K59 -> 0.146
A63: ED_PHA3514_00002 | B63: DPA0402 | C63: Underground 5 kV | D63: MVA | E63: ='[3]3.5 Physical assets_CON'!K60 -> 0
A64: ED_PHA3514_00003 | B64: DPA0403 | C64: Underground 6.6 kV | D64: MVA | E64: ='[3]3.5 Physical assets_CON'!K61 -> 2.409
A65: ED_PHA3514_00004 | B65: DPA0404 | C65: Underground 7.6 kV | D65: MVA | E65: ='[3]3.5 Physical assets_CON'!K62 -> 0
A66: ED_PHA3514_00005 | B66: DPA0405 | C66: Underground 11 kV | D66: MVA | E66: ='[3]3.5 Physical assets_CON'!K63 -> 4.466
A67: ED_PHA3514_00006 | B67: DPA0406 | C67: Underground SWER | D67: MVA | E67: ='[3]3.5 Physical assets_CON'!K64 -> 1.696
A68: ED_PHA3514_00007 | B68: DPA0407 | C68: Underground 12.7 kV | D68: MVA | E68: ='[3]3.5 Physical assets_CON'!K65 -> 0
A69: ED_PHA3514_00008 | B69: DPA0408 | C69: Underground 22 kV | D69: MVA | E69: ='[3]3.5 Physical assets_CON'!K66 -> 8.767
A70: ED_PHA3514_00009 | B70: DPA0409 | C70: Underground 33 kV | D70: MVA | E70: ='[3]3.5 Physical assets_CON'!K67 -> 25.304
A71: ED_PHA3514_00010 | B71: DPA0410 | C71: Underground 66 kV | D71: MVA | E71: ='[3]3.5 Physical assets_CON'!K68 -> 55.678
A72: ED_PHA3514_00010 | B72: DPA0411 | C72: Underground 110 kV | D72: MVA | E72: ='[3]3.5 Physical assets_CON'!K69 -> 0
A73: ED_PHA3514_00011 | B73: DPA0412 | C73: Underground 132 kV | D73: MVA | E73: ='[3]3.5 Physical assets_CON'!K70 -> 107.329
A74: ED_PHA3514_00012 | B74: DPA0413 | C74: Other | D74: MVA | E74: ='[3]3.5 Physical assets_CON'!K71 -> 0
C76: TABLE 3.5.2 - TRANSFORMER CAPACITIES
C77: Table 3.5.2.1 Distribution transformer total installed capacity
A78: ED_PHA3521_00001 | B78: DPA0501 | C78: Distribution transformer capacity owned by utility | D78: MVA | E78: 8213
A79: ED_PHA3521_00002 | B79: DPA0502 | C79: Distribution transformer capacity owned by High Voltage Customers | D79: MVA | E79: 1745.684643
A80: ED_PHA3521_00003 | B80: DPA0503 | C80: Cold spare capacity included in DPA0501 | D80: MVA | E80: 297.121
C82: Table 3.5.2.2 Zone substation transformer capacity
A83: ED_PHA3522_00001 | B83: DPA0601 | C83: Total installed capacity for first step transformation where there are two steps to reach distribution voltage | D83: MVA | E83: ='[4]3.5 Physical assets C'!M83 -> 3266.15
A84: ED_PHA3522_00002 | B84: DPA0602 | C84: Total installed capacity for second step transformation where there are two steps to reach distribution voltage | D84: MVA | E84: ='[4]3.5 Physical assets C'!M84 -> 1991.287
A85: ED_PHA3522_00003 | B85: DPA0603 | C85: Total zone substation transformer capacity where there is only a single step transformation to reach distribution voltage | D85: MVA | E85: ='[4]3.5 Physical assets C'!M85 -> 3295.088
A86: ED_PHA3522_00004 | B86: DPA0604 | C86: Total zone substation transformer capacity | D86: MVA | E86: ='[4]3.5 Physical assets C'!M86 -> 9442.125
A87: ED_PHA3522_00005 | B87: DPA0605 | C87: Cold spare capacity of zone substation transformers included in DPA0604 | D87: MVA | E87: ='[4]3.5 Physical assets C'!M87 -> 889.6
C89: Table 3.5.2.3 Distribution - other transformer capacity
A90: ED_PHA3523_00001 | C90: Distribution other - transformer capacity owned by utility | D90: MVA
C92: TABLE 3.5.3 - PUBLIC LIGHTING
A93: ED_PHA353_00001 | B93: DPA0701 | C93: Public lighting luminaires | D93: Number | E93: 148621
A94: ED_PHA353_00002 | B94: DPA0702 | C94: Public lighting poles | D94: Number | E94: 125664
A95: ED_PHA353_00003 | B95: DPA0703 | C95: Public lighting columns | D95: Number

Sheet 3.6 Quality of service
C1: REGULATORY REPORTING STATEMENT
C2: =TradingName -> Ergon Energy
C3: =CONCATENATE("Benchmarking RIN response ",CRY) -> Benchmarking RIN response 2013-14
C4: 3.6 QUALITY OF SERVICE DATA
E8: Actual
E9: =CRY -> 2013-14
D10: Unit
C11: TABLE 3.6.1 - RELIABILITY
C12: Table 3.6.1.1 Inclusive of MEDs
A13: ED_QOS3611_00001 | B13: DQS0101 | C13: Whole of network unplanned SAIDI | D13: minutes/customer | E13: 327.2417
A14: ED_QOS3611_00002 | B14: DQS0102 | C14: Whole of network unplanned SAIDI excluding excluded outages | D14: minutes/customer | E14: 325.6706
A15: ED_QOS3611_00003 | B15: DQS0103 | C15: Whole of network unplanned SAIFI | D15: interruptions/customer | E15: 2.6623
A16: ED_QOS3611_00004 | B16: DQS0104 | C16: Whole of network unplanned SAIFI excluding excluded outages | D16: interruptions/customer | E16: 2.6314
C17: Table 3.6.1.2 Exclusive of MEDs
A18: ED_QOS3612_00001 | B18: DQS0105 | C18: Whole of network unplanned SAIDI | D18: minutes/customer | E18: 229.5425
A19: ED_QOS3612_00002 | B19: DQS0106 | C19: Whole of network unplanned SAIDI excluding excluded outages | D19: minutes/customer | E19: 228.0554
A20: ED_QOS3612_00003 | B20: DQS0107 | C20: Whole of network unplanned SAIFI | D20: interruptions/customer | E20: 2.3479
A21: ED_QOS3612_00004 | B21: DQS0108 | C21: Whole of network unplanned SAIFI excluding excluded outages | D21: interruptions/customer | E21: 2.317
C23: TABLE 3.6.2 - ENERGY NOT SUPPLIED
A24: ED_QOS362_00001 | B24: DQS0201 | C24: Energy Not Supplied (planned) | D24: GWh | E24: 1.489765383
A25: ED_QOS362_00002 | B25: DQS0202 | C25: Energy Not Supplied (unplanned) | D25: GWh | E25: 6.126441031
B26: DQS02 | C26: Total | D26: GWh | E26: =SUM(E24:E25) -> 7.616206414
C28: TABLE 3.6.3 - SYSTEM LOSSES
A29: ED_QOS363_00001 | B29: DQS03 | C29: System losses | D29: % | E29: 0.0486524829
C31: TABLE 3.6.4 - CAPACITY UTILISATION
A32: ED_QOS364_00001 | B32: DQS04 | C32: Overall utilisation | D32: % | E32: 0.36563

Sheet 3.7 Operating environment
C1: REGULATORY REPORTING STATEMENT
C2: =TradingName -> Ergon Energy
C3: =CONCATENATE("Benchmarking RIN response ",CRY) -> Benchmarking RIN response 2013-14
C4: 3.7 OPERATING ENVIRONMENT FACTORS
E8: Actual
E9: =CRY -> 2013-14
C11: TABLE 3.7.1 - DENSITY FACTORS
A12: ED_OEF371_00001 | B12: DOEF0101 | C12: Customer density | D12: Customer / km | E12: 5.089587523
A13: ED_OEF371_00002 | B13: DOEF0102 | C13: Energy density | D13: MWh/customer | E13: 18.99941115
A14: ED_OEF371_00003 | B14: DOEF0103 | C14: Demand density | D14: kVA / customer | E14: 4.746882662
C16: TABLE 3.7.2 - TERRAIN FACTORS
A17: ED_OEF372_00001 | B17: DOEF0201 | C17: Rural proportion | D17: % | E17: 0.9
A18: ED_OEF372_00002 | B18: DOEF0202 | C18: Urban and CBD vegetation maintenance spans | D18: Number of spans | E18: 126444.4891
A19: ED_OEF372_00003 | B19: DOEF0203 | C19: Rural vegetation maintenance spans | D19: Number of spans | E19: 182652.4869
A20: ED_OEF372_00004 | B20: DOEF0204 | C20: Total vegetation maintenance spans | D20: Number of spans | E20: 309096.976
A21: ED_OEF372_00005 | B21: DOEF0205 | C21: Total number of spans | D21: Number of spans | E21: 1030702.986
A22: ED_OEF372_00006 | B22: DOEF0206 | C22: Average urban and CBD vegetation maintenance span cycle | D22: Years | E22: 1.7
A23: ED_OEF372_00007 | B23: DOEF0207 | C23: Average rural vegetation maintenance span cycle | D23: Years | E23: 2.7
A24: ED_OEF372_00008 | B24: DOEF0208 | C24: Average number of trees per urban and CBD vegetation maintenance span | D24: Trees | E24: 2.6
A25: ED_OEF372_00009 | B25: DOEF0209 | C25: Average number of trees per rural vegetation maintenance span | D25: Trees | E25: 6.8
A26: ED_OEF372_00010 | B26: DOEF0210 | C26: Average number of defects per urban and CBD vegetation maintenance span | D26: Defects | E26: 0.52873981
A27: ED_OEF372_00011 | B27: DOEF0211 | C27: Average number of defects per rural vegetation maintenance span | D27: Defects | E27: 0.3717740297
A28: ED_OEF372_00012 | B28: DOEF0212 | C28: Tropical proportion | D28: Spans | E28: 536375.9434
A29: ED_OEF372_00013 | B29: DOEF0213 | C29: Standard vehicle access | D29: km | E29: 50958.47235
A30: ED_OEF372_00014 | B30: DOEF0214 | C30: Bushfire risk | D30: Spans | E30: 4210.806672
C32: TABLE 3.7.3 - SERVICE AREA FACTORS
A33: ED_OEF373_00001 | B33: DOEF0301 | C33: Route Line length | D33: km | E33: 141844.5005

Sheet 3.7.4 Weather stations
C1: REGULATORY REPORTING STATEMENT
C2: =TradingName -> Ergon Energy
C3: =CONCATENATE("Benchmarking RIN response ",CRY) -> Benchmarking RIN response 2013-14
C4: 3.7 OPERATING ENVIRONMENT FACTORS
C7: TABLE 3.7.4 - WEATHER STATIONS
C9: Weather Station ID | D9: Post code | E9: Suburb | F9: Materiality
A10: ED_OEF374_00001 | C10: 45000 | D10: 4474 | E10: ADAVALE | F10: No
A11: ED_OEF374_00002 | C11: 33295 | D11: 4807 | E11: ALVA | F11: Yes
A12: ED_OEF374_00003 | C12: 41175 | D12: 4378 | E12: APPLETHORPE | F12: Yes
A13: ED_OEF374_00004 | C13: 31193 | D13: 4883 | E13: ATHERTON | F13: No
A14: ED_OEF374_00005 | C14: 33002 | D14: 4807 | E14: MCDESME | F14: Yes
A15: ED_OEF374_00006 | C15: 45009 | D15: 4871 | E15: DURHAM | F15: Yes
A16: ED_OEF374_00007 | C16: 39004 | D16: 4702 | E16: BARALABA | F16: No
A17: ED_OEF374_00008 | C17: 36007 | D17: 4725 | E17: BARCALDINE | F17: No
A18: ED_OEF374_00009 | C18: 38000 | D18: 4829 | E18: BEDOURIE | F18: No
A19: ED_OEF374_00010 | C19: 39006 | D19: 4715 | E19: DAKENBA | F19: No
A20: ED_OEF374_00011 | C20: 38026 | D20: 4482 | E20: BIRDSVILLE | F20: Yes
A21: ED_OEF374_00012 | C21: 38002 | D21: 4482 | E21: BIRDSVILLE | F21: No
A22: ED_OEF374_00013 | C22: 36034 | D22: 4472 | E22: BLACKALL | F22: Yes
A23: ED_OEF374_00014 | C23: 36143 | D23: 4472 | E23: BLACKALL | F23: No
A24: ED_OEF374_00015 | C24: 35134 | D24: 4702 | E24: STEWARTON | F24: Yes
A25: ED_OEF374_00016 | C25: 35290 | D25: 4717 | E25: BLACKWATER | F25: No
A26: ED_OEF374_00017 | C26: 44010 | D26: 4488 | E26: BOLLON | F26: No
A27: ED_OEF374_00018 | C27: 32061 | D27: 4860 | E27: STOTERS HILL | F27: No
A28: ED_OEF374_00019 | C28: 38003 | D28: 4829 | E28: BOULIA | F28: No
A29: ED_OEF374_00020 | C29: 33257 | D29: 4805 | E29: BOWEN | F29: No
A30: ED_OEF374_00021 | C30: 33007 | D30: 4805 | E30: BOWEN | F30: No
A31: ED_OEF374_00022 | C31: 40428 | D31: 4625 | E31: CAMPBELL CREEK | F31: No
A32: ED_OEF374_00023 | C32: 35149 | D32: 4718 | E32: ROUNDSTONE | F32: No
A33: ED_OEF374_00024 | C33: 39014 | D33: 4680 | E33: BOYNE VALLEY | F33: No
A34: ED_OEF374_00025 | C34: 39128 | D34: 4670 | E34: KENSINGTON | F34: Yes
A35: ED_OEF374_00026 | C35: 39015 | D35: 4670 | E35: BUNDABERG CENTRAL | F35: No
A36: ED_OEF374_00027 | C36: 33001 | D36: 4807 | E36: AYR | F36: No
A37: ED_OEF374_00028 | C37: 29077 | D37: 4830 | E37: BURKETOWN | F37: Yes
A38: ED_OEF374_00029 | C38: 29004 | D38: 4830 | E38: BURKETOWN | F38: No
A39: ED_OEF374_00030 | C39: 39018 | D39: 4677 | E39: EURIMBULA | F39: No
A40: ED_OEF374_00031 | C40: 31011 | D40: 4870 | E40: AEROGLEN | F40: Yes
A41: ED_OEF374_00032 | C41: 31010 | D41: 4871 | E41: EAST TRINITY | F41: No
A42: ED_OEF374_00033 | C42: 31222 | D42: 4868 | E42: WOREE | F42: Yes
A43: ED_OEF374_00034 | C43: 41011 | D43: 4358 | E43: CAMBOOYA | F43: No
A44: ED_OEF374_00035 | C44: 37010 | D44: 4828 | E44: CAMOOWEAL | F44: Yes
A45: ED_OEF374_00036 | C45: 39023 | D45: 4680 | E45: CURTIS ISLAND | F45: No
A46: ED_OEF374_00037 | C46: 32005 | D46: 4810 | E46: CAPE CLEVELAND | F46: No
A47: ED_OEF374_00038 | C47: 32182 | D47: 4875 | E47: CORAL SEA | F47: Yes
A48: ED_OEF374_00039 | C48: 31213 | D48: 4895 | E48: HOPE VALE | F48: Yes
A49: ED_OEF374_00040 | C49: 32004 | D49: 4849 | E49: CARDWELL | F49: No
A50: ED_OEF374_00041 | C50: 32189 | D50: 4849 | E50: CARDWELL | F50: No
A51: ED_OEF374_00042 | C51: 29167 | D51: 4825 | E51: LAWN HILL | F51: Yes
A52: ED_OEF374_00043 | C52: 44021 | D52: 4470 | E52: CHARLEVILLE | F52: Yes
A53: ED_OEF374_00044 | C53: 44221 | D53: 4470 | E53: CHARLEVILLE | F53: No
A54: ED_OEF374_00045 | C54: 44022 | D54: 4470 | E54: CHARLEVILLE | F54: No
A55: ED_OEF374_00046 | C55: 34084 | D55: 4820 | E55: COLUMBIA | F55: No
A56: ED_OEF374_00047 | C56: 34002 | D56: 4820 | E56: LISSNER | F56: No
A57: ED_OEF374_00048 | C57: 39025 | D57: 4660 | E57: CHILDERS | F57: No
A58: ED_OEF374_00049 | C58: 35124 | D58: 4721 | E58: CLERMONT | F58: Yes
A59: ED_OEF374_00050 | C59: 35019 | D59: 4721 | E59: CLERMONT | F59: No
A60: ED_OEF374_00051 | C60: 29009 | D60: 4824 | E60: CLONCURRY | F60: No
A61: ED_OEF374_00052 | C61: 29141 | D61: 4824 | E61: CLONCURRY | F61: Yes
A62: ED_OEF374_00053 | C62: 29008 | D62: 4824 | E62: CLONCURRY | F62: No
A63: ED_OEF374_00054 | C63: 27054 | D63: 4875 | E63: COCONUT ISLAND | F63: Yes
A64: ED_OEF374_00055 | C64: 27073 | D64: 4871 | E64: COEN | F64: Yes
A65: ED_OEF374_00056 | C65: 27006 | D65: 4871 | E65: COEN | F65: No
A66: ED_OEF374_00057 | C66: 27005 | D66: 4871 | E66: COEN | F66: No
A67: ED_OEF374_00058 | C67: 33013 | D67: 4804 | E67: COLLINSVILLE | F67: No
A68: ED_OEF374_00059 | C68: 31209 | D68: 4895 | E68: COOKTOWN | F68: Yes
A69: ED_OEF374_00060 | C69: 31017 | D69: 4895 | E69: COOKTOWN | F69: No
A70: ED_OEF374_00061 | C70: 31016 | D70: 4895 | E70: COOKTOWN | F70: No
A71: ED_OEF374_00062 | C71: 32135 | D71: 4871 | E71: COWLEY BEACH | F71: No
A72: ED_OEF374_00063 | C72: 29012 | D72: 4871 | E72: CROYDON | F72: No
A73: ED_OEF374_00064 | C73: 44026 | D73: 4490 | E73: CUNNAMULLA | F73: No
A74: ED_OEF374_00065 | C74: 41522 | D74: 4405 | E74: DALBY | F74: Yes
A75: ED_OEF374_00066 | C75: 41023 | D75: 4405 | E75: DALBY | F75: No
A76: ED_OEF374_00067 | C76: 33298 | D76: 4820 | E76: DOTSWOOD | F76: No
A77: ED_OEF374_00068 | C77: 32136 | D77: 4854 | E77: WALTER HILL | F77: No
A78: ED_OEF374_00069 | C78: 35264 | D78: 4720 | E78: EMERALD | F78: Yes
A79: ED_OEF374_00070 | C79: 35027 | D79: 4720 | E79: EMERALD | F79: No
A80: ED_OEF374_00071 | C80: 31084 | D80: 4871 | E80: FITZROY ISLAND | F80: No
A81: ED_OEF374_00072 | C81: 40478 | D81: 4581 | E81: FRASER ISLAND | F81: No
A82: ED_OEF374_00073 | C82: 39066 | D82: 4625 | E82: GAYNDAH | F82: Yes
A83: ED_OEF374_00074 | C83: 39039 | D83: 4625 | E83: GAYNDAH | F83: No
A84: ED_OEF374_00075 | C84: 30124 | D84: 4871 | E84: GEORGETOWN | F84: Yes
A85: ED_OEF374_00076 | C85: 30018 | D85: 4871 | E85: GEORGETOWN | F85: No
A86: ED_OEF374_00077 | C86: 44036 | D86: 4490 | E86: CUNNAMULLA | F86: No
A87: ED_OEF374_00078 | C87: 39326 | D87: 4680 | E87: CLINTON | F87: Yes
A88: ED_OEF374_00079 | C88: 39123 | D88: 4680 | E88: SOUTH GLADSTONE | F88: Yes
A89: ED_OEF374_00080 | C89: 41521 | D89: 4390 | E89: GOONDIWINDI | F89: No
A90: ED_OEF374_00081 | C90: 41038 | D90: 4390 | E90: GOONDIWINDI | F90: No
A91: ED_OEF374_00082 | C91: 31192 | D91: 4871 | E91: GREEN ISLAND | F91: No
A92: ED_OEF374_00083 | C92: 33255 | D92: 4802 | E92: WHITSUNDAYS | F92: No
A93: ED_OEF374_00084 | C93: 33106 | D93: 4802 | E93: WHITSUNDAYS | F93: Yes
A94: ED_OEF374_00085 | C94: 33031 | D94: 4802 | E94: WHITSUNDAYS | F94: No
A95: ED_OEF374_00086 | C95: 31029 | D95: 4887 | E95: HERBERTON | F95: No
A96: ED_OEF374_00087 | C96: 41044 | D96: 4370 | E96: THE HERMITAGE | F96: No
A97: ED_OEF374_00088 | C97: 39304 | D97: 4875 | E97: CORAL SEA | F97: No
A98: ED_OEF374_00089 | C98: 39122 | D98: 4875 | E98: CORAL SEA | F98: No
A99: ED_OEF374_00090 | C99: 40405 | D99: 4655 | E99: URANGAN | F99: Yes
A100: ED_OEF374_00091 | C100: 40765 | D100: 4655 | E100: URRAWEEN | F100: No
A101: ED_OEF374_00092 | C101: 27058 | D101: 4875 | E101: HORN | F101: Yes
A102: ED_OEF374_00093 | C102: 30022 | D102: 4821 | E102: HUGHENDEN | F102: Yes
A103: ED_OEF374_00094 | C103: 30024 | D103: 4821 | E103: HUGHENDEN | F103: No
A104: ED_OEF374_00095 | C104: 32078 | D104: 4850 | E104: INGHAM | F104: No
A105: ED_OEF374_00096 | C105: 41097 | D105: 4387 | E105: BYBERA | F105: Yes
A106: ED_OEF374_00097 | C106: 41341 | D106: 4387 | E106: WHETSTONE | F106: No
A107: ED_OEF374_00098 | C107: 27048 | D107: 4875 | E107: SOMERSET | F107: No
A108: ED_OEF374_00099 | C108: 43015 | D108: 4454 | E108: INJUNE | F108: No
A109: ED_OEF374_00100 | C109: 32025 | D109: 4860 | E109: EAST INNISFAIL | F109: No
A110: ED_OEF374_00101 | C110: 36026 | D110: 4731 | E110: ISISFORD | F110: No
A111: ED_OEF374_00102 | C111: 29058 | D111: 4823 | E111: JULIA CREEK | F111: Yes
A112: ED_OEF374_00103 | C112: 29025 | D112: 4823 | E112: JULIA CREEK | F112: No
A113: ED_OEF374_00104 | C113: 31034 | D113: 4872 | E113: KAIRI | F113: No
A114: ED_OEF374_00105 | C114: 39057 | D114: 4630 | E114: KALPOWAR | F114: No
A115: ED_OEF374_00106 | C115: 29028 | D115: 4891 | E115: KARUMBA | F115: No
A116: ED_OEF374_00107 | C116: 41056 | D116: 4373 | E116: KILLARNEY | F116: No
A117: ED_OEF374_00108 | C117: 40922 | D117: 4610 | E117: TAABINGA | F117: Yes
A118: ED_OEF374_00109 | C118: 40112 | D118: 4610 | E118: KINGAROY | F118: No
A119: ED_OEF374_00110 | C119: 31083 | D119: 4872 | E119: KOOMBOOLOOMBA | F119: No
A120: ED_OEF374_00111 | C120: 29038 | D120: 4871 | E120: KOWANYAMA | F120: Yes
A121: ED_OEF374_00112 | C121: 39059 | D121: 4875 | E121: CORAL SEA | F121: No
A122: ED_OEF374_00113 | C122: 29181 | D122: 4825 | E122: MOUNT ISA | F122: Yes
A123: ED_OEF374_00114 | C123: 31110 | D123: 4871 | E123: LAKELAND | F123: No
A124: ED_OEF374_00115 | C124: 32137 | D124: 4860 | E124: MAMU | F124: No
A125: ED_OEF374_00116 | C125: 35139 | D125: 4702 | E125: LOCHINGTON | F125: Yes
A126: ED_OEF374_00117 | C126: 28008 | D126: 4871 | E126: LOCKHART | F126: Yes
A127: ED_OEF374_00118 | C127: 36031 | D127: 4730 | E127: LONGREACH | F127: Yes
A128: ED_OEF374_00119 | C128: 36167 | D128: 4730 | E128: LONGREACH | F128: No
A129: ED_OEF374_00120 | C129: 36030 | D129: 4730 | E129: LONGREACH | F129: No
A130: ED_OEF374_00121 | C130: 31037 | D130: 4873 | E130: LOW ISLES | F130: Yes
A131: ED_OEF374_00122 | C131: 32141 | D131: 4850 | E131: LUCINDA | F131: Yes
A132: ED_OEF374_00123 | C132: 33045 | D132: 4740 | E132: SOUTH MACKAY | F132: Yes
A133: ED_OEF374_00124 | C133: 33297 | D133: 4740 | E133: MACKAY HARBOUR | F133: No
A134: ED_OEF374_00125 | C134: 33119 | D134: 4740 | E134: MACKAY HARBOUR | F134: Yes
A135: ED_OEF374_00126 | C135: 33046 | D135: 4740 | E135: MACKAY | F135: No
A136: ED_OEF374_00127 | C136: 31190 | D136: 4880 | E136: MAREEBA | F136: No
A137: ED_OEF374_00128 | C137: 31210 | D137: 4880 | E137: MAREEBA | F137: Yes
A138: ED_OEF374_00129 | C138: 31066 | D138: 4880 | E138: MAREEBA | F138: No
A139: ED_OEF374_00130 | C139: 40126 | D139: 4650 | E139: MARYBOROUGH | F139: Yes
A140: ED_OEF374_00131 | C140: 200001 | D140: 4741 | E140: THE PERCY GROUP | F140: Yes
A141: ED_OEF374_00132 | C141: 200001 | D141: 4741 | E141: THE PERCY GROUP | F141: Yes
A142: ED_OEF374_00133 | C142: 42112 | D142: 4415 | E142: MILES | F142: Yes
A143: ED_OEF374_00134 | C143: 42023 | D143: 4415 | E143: MILES | F143: No
A144: ED_OEF374_00135 | C144: 33090 | D144: 4807 | E144: MILLAROO | F144: No
A145: ED_OEF374_00136 | C145: 43020 | D145: 4465 | E145: MITCHELL | F145: No
A146: ED_OEF374_00137 | C146: 39330 | D146: 4630 | E146: THREE MOON | F146: No
A147: ED_OEF374_00138 | C147: 39104 | D147: 4630 | E147: MONTO | F147: No
A148: ED_OEF374_00139 | C148: 34035 | D148: 4744 | E148: MORANBAH | F148: Yes
A149: ED_OEF374_00140 | C149: 34038 | D149: 4744 | E149: MORANBAH | F149: No
A150: ED_OEF374_00141 | C150: 27015 | D150: 4871 | E150: WENLOCK | F150: No
A151: ED_OEF374_00142 | C151: 29039 | D151: 4871 | E151: MORNINGTON ISLAND | F151: No
A152: ED_OEF374_00143 | C152: 29182 | D152: 4871 | E152: MORNINGTON ISLAND | F152: Yes
A153: ED_OEF374_00144 | C153: 29127 | D153: 4825 | E153: KALKADOON | F153: Yes
A154: ED_OEF374_00145 | C154: 29162 | D154: 4825 | E154: MOUNT ISA | F154: No
A155: ED_OEF374_00146 | C155: 29126 | D155: 4825 | E155: MOUNT ISA | F155: No
A156: ED_OEF374_00147 | C156: 29125 | D156: 4825 | E156: MOUNT ISA | F156: No
A157: ED_OEF374_00148 | C157: 30036 | D157: 4871 | E157: MOUNT SURPRISE | F157: No
A158: ED_OEF374_00149 | C158: 28007 | D158: 4871 | E158: YARRADEN | F158: No
A159: ED_OEF374_00150 | C159: 40158 | D159: 4615 | E159: NANANGO | F159: No
A160: ED_OEF374_00151 | C160: 39171 | D160: 4627 | E160: CHELTENHAM | F160: No
A161: ED_OEF374_00152 | C161: 37059 | D161: 4825 | E161: MOUNT ISA | F161: Yes
A162: ED_OEF374_00153 | C162: 29063 | D162: 4890 | E162: NORMANTON | F162: Yes
A163: ED_OEF374_00154 | C163: 29041 | D163: 4890 | E163: NORMANTON | F163: No
A164: ED_OEF374_00155 | C164: 39130 | D164: 4875 | E164: CORAL SEA | F164: No
A165: ED_OEF374_00156 | C165: 41359 | D165: 4401 | E165: KELVINHAUGH | F165: Yes
A166: ED_OEF374_00157 | C166: 33077 | D166: 4703 | E166: PACIFIC HEIGHTS | F166: No
A167: ED_OEF374_00158 | C167: 28004 | D167: 4871 | E167: PALMER | F167: No
A168: ED_OEF374_00159 | C168: 31076 | D168: 4872 | E168: DIMBULAH | F168: No
A169: ED_OEF374_00160 | C169: 33058 | D169: 4741 | E169: THE PERCY GROUP | F169: No
A170: ED_OEF374_00161 | C170: 41082 | D170: 4356 | E170: PITTSWORTH | F170: No
A171: ED_OEF374_00162 | C171: 31052 | D171: 4877 | E171: PORT DOUGLAS | F171: No
A172: ED_OEF374_00163 | C172: 33247 | D172: 4800 | E172: GUNYARRA | F172: Yes
A173: ED_OEF374_00164 | C173: 33061 | D173: 4800 | E173: PROSERPINE | F173: No
A174: ED_OEF374_00165 | C174: 45015 | D174: 4480 | E174: QUILPIE | F174: No
A175: ED_OEF374_00166 | C175: 30161 | D175: 4740 | E175: RICHMOND | F175: Yes
A176: ED_OEF374_00167 | C176: 30045 | D176: 4740 | E176: RICHMOND | F176: No
A177: ED_OEF374_00168 | C177: 39083 | D177: 4700 | E177: WEST ROCKHAMPTON | F177: Yes
A178: ED_OEF374_00169 | C178: 35059 | D178: 4702 | E178: ROLLESTON | F178: No
A179: ED_OEF374_00170 | C179: 35129 | D179: 4702 | E179: ROLLESTON | F179: Yes
A180: ED_OEF374_00171 | C180: 43091 | D180: 4455 | E180: ROMA | F180: Yes
A181: ED_OEF374_00172 | C181: 43030 | D181: 4455 | E181: ROMA | F181: No
A182: ED_OEF374_00173 | C182: 33208 | D182: 4703 | E182: ROSSLYN | F182: No
A183: ED_OEF374_00174 | C183: 39322 | D183: 4875 | E183: CORAL SEA | F183: Yes
A184: ED_OEF374_00175 | C184: 33308 | D184: 4702 | E184: SHOALWATER | F184: Yes
A185: ED_OEF374_00176 | C185: 39085 | D185: 4581 | E185: FRASER ISLAND | F185: No
A186: ED_OEF374_00177 | C186: 27075 | D186: 4874 | E186: MISSION RIVER | F186: Yes
A187: ED_OEF374_00178 | C187: 39314 | D187: 4677 | E187: SEVENTEEN SEVENTY | F187: No
A188: ED_OEF374_00179 | C188: 32037 | D188: 4871 | E188: BOOGAN | F188: Yes
A189: ED_OEF374_00180 | C189: 35065 | D189: 4722 | E189: SPRINGSURE | F189: No
A190: ED_OEF374_00181 | C190: 43109 | D190: 4487 | E190: ST GEORGE | F190: Yes
A191: ED_OEF374_00182 | C191: 43034 | D191: 4487 | E191: ST GEORGE | F191: No
A192: ED_OEF374_00183 | C192: 33210 | D192: 4707 | E192: ST LAWRENCE | F192: Yes
A193: ED_OEF374_00184 | C193: 33065 | D193: 4707 | E193: ST LAWRENCE | F193: No
A194: ED_OEF374_00185 | C194: 41095 | D194: 4380 | E194: STANTHORPE | F194: No
A195: ED_OEF374_00186 | C195: 43035 | D195: 4417 | E195: SURAT | F195: No
A196: ED_OEF374_00187 | C196: 29139 | D196: 4830 | E196: SWEERS ISLAND | F196: No
A197: ED_OEF374_00188 | C197: 35069 | D197: 4478 | E197: TAMBO | F197: No
A198: ED_OEF374_00189 | C198: 35070 | D198: 4420 | E198: TAROOM | F198: No
A199: ED_OEF374_00190 | C199: 33047 | D199: 4740 | E199: TE KOWAI | F199: No
A200: ED_OEF374_00191 | C200: 41100 | D200: 4385 | E200: TEXAS | F200: No
A201: ED_OEF374_00192 | C201: 39089 | D201: 4716 | E201: THANGOOL | F201: Yes
A202: ED_OEF374_00193 | C202: 45025 | D202: 4492 | E202: THARGOMINDAH | F202: Yes
A203: ED_OEF374_00194 | C203: 45017 | D203: 4492 | E203: THARGOMINDAH | F203: No
... 897 more rows

Sheet Unlocked worksheet
